{"text_format":"1","workbook":"xlsx","n_sheets":18,"sheets":["PORTADA","MENU","MATRIZ","ERROR","PREVISION","NOMINA","VISORN","DATOS","TARIFA","TARIFAS","CATALOGO","GENERALES (2)","AJUSTE SUELDOS","RECIBO","TARIFAS (2)","GENERALES1","c_Estado","GENERALES"],"not_rendered":{"charts":0,"images":14,"macros":1,"external_links":0,"defined_names":48,"comments":1,"pivot_tables":0},"unopened":[],"bounds":{"document_bytes":16777216,"sheet_cells":100000,"rows_first":2000,"rows_last":500,"rows_between":2000,"halvings":0,"cell_chars":16384,"cell_head_chars":4096},"cells_cut":0,"cells_raw":0,"read":"whole","date_system":"1900"}

{"sheet":"PORTADA","index":0,"n_rows":198,"n_cols":38,"rows_kept":198,"cut":false,"hidden":false,"merged":[]}
[]
[]
[]
[]
[]
[]
[]
[]
[]
[]
[]
[]
[]
[]
[]
[]
[]
[]
[]
[]
[]
[]
[]
[]
[]
[]
[]
[]
[]
[]
[]
[]
[]
[]
[]
[]
[]
[]
[]
[]
[]
[]
[]
[]
[]
[]
[]
[]
[]
[]
[]
[]
[]
[]
[]
[]
[]
[]
[]
[]
[]
[]
[]
[]
[]
[]
[]
[]
[]
[]
[]
[]
[]
[]
[]
[]
[]
[]
[]
[]
[]
[]
[]
[]
[]
[]
[]
[]
[]
[]
[]
[]
[]
[]
[]
[]
[]
[]
[]
[]
[]
[]
[]
[]
[]
[]
[]
[]
[]
[]
[null,null,null,null,null,null,null,null,null,null,null,null,null,null,null,null,null,null,null,null,null,null,null,null,null,null,null,null,null,null,null,null,null,null,null,null,null,"Len@range(a2)"]
[]
[]
[]
[]
[]
[]
[]
[]
[]
[]
[]
[]
[]
[null,null,null,null,null,null,null,null,null,null,null,null,"Range(1)"]
[]
[]
[]
[]
[]
[]
[]
[]
[]
[]
[]
[]
[]
[]
[]
[]
[]
[]
[]
[]
[]
[]
[]
[]
[]
[]
[]
[]
[]
[]
[]
[]
[]
[]
[]
[]
[]
[]
[]
[]
[]
[]
[]
[]
[]
[]
[]
[]
[]
[]
[]
[]
[]
[]
[]
[]
[]
[]
[]
[]
[]
[]
[]
[]
[]
[]
[]
[]
[]
[]
[]
[]
[null,null,null,null,null,null,null,null,null,null,"Len@25"]

{"sheet":"MENU","index":1,"n_rows":15,"n_cols":3,"rows_kept":15,"cut":false,"hidden":true,"merged":[]}
[]
[]
[]
[]
[]
[]
[null,"Descripción","Nombre de la hoja"]
[null,"Matriz de percepciones y deducciones","MATRIZ"]
[null,"Ejemplo corrección de errores en CFDI","ERRORES"]
[null,"Ejemplo previsión social","PREVISION"]
[null,"Importar XML de nómina","NOMINA"]
[null,"Visor de nómina","VISORN"]
[null,"Formato para el ajuste de sueldos","AJUSTE SUELDOS"]
[null,"Ejemplo CFDI por diferencias a cargo o a favor","RECIBO"]
[null,"Catálogo de estados","c_Estado"]

{"sheet":"MATRIZ","index":2,"n_rows":52,"n_cols":12,"rows_kept":52,"cut":false,"hidden":true,"merged":[[2,4,2,7],[4,6,4,7],[10,4,10,5],[13,4,13,5],[14,6,14,7],[47,6,47,7],[49,3,51,3],[49,6,49,7],[4,1,7,1],[4,2,7,2],[18,6,18,7],[18,1,19,1],[18,2,19,2],[28,4,28,5],[29,4,29,5],[30,6,30,7],[41,3,42,3],[43,3,44,3],[43,4,43,7],[44,6,44,7],[17,4,17,5]]}
[]
[]
[null,null,null,null,"Deduciones"]
[null,"Tipo","Percepción","Régimen","Tipo ","Gravado","Tipo","Exento"]
[null,1,"Sueldos, Salarios  Rayas y Jornales","02 Sueldos (Incluye ingresos señalados en la fracción I del artículo 94 de LISR)","099","Ajuste a ingresos por sueldos y salarios gravados"]
[null,null,null,null,12,"Anticipo de salarios"]
[null,null,null,null,13,"Pagos hechos con exceso al trabajador"]
[null,null,null,null,20,"Ausencia (Ausentismo)"]
[null,2,"Gratificación Anual (Aguinaldo)","02 Sueldos (Incluye ingresos señalados en la fracción I del artículo 94 de LISR)",25,"Ajuste en Gratificación Anual (Aguinaldo) Gravado",24,"Ajuste en Gratificación Anual (Aguinaldo) Exento"]
[null,3,"Participación de los Trabajadores en las Utilidades PTU","02 Sueldos (Incluye ingresos señalados en la fracción I del artículo 94 de LISR)",27,"Ajuste en Participación de los Trabajadores en las Utilidades PTU Gravado",26,"Ajuste en Participación de los Trabajadores en las Utilidades PTU Exento"]
[null,4,"Reembolso de Gastos Médicos Dentales y Hospitalarios","02 Sueldos (Incluye ingresos señalados en la fracción I del artículo 94 de LISR)",null,null,28,"Ajuste en Reembolso de Gastos Médicos Dentales y Hospitalarios Exento"]
[null,5,"Fondo de Ahorro","02 Sueldos (Incluye ingresos señalados en la fracción I del artículo 94 de LISR)","082","Ajuste en Fondo de ahorro Gravado",29,"Ajuste en Fondo de ahorro Exento"]
[null,6,"Caja de ahorro","02 Sueldos (Incluye ingresos señalados en la fracción I del artículo 94 de LISR)","083","Ajuste en Caja de ahorro Gravado",30,"Ajuste en Caja de ahorro Exento"]
[null,9,"Contribuciones a Cargo del Trabajador Pagadas por el Patrón","02 Sueldos (Incluye ingresos señalados en la fracción I del artículo 94 de LISR)",null,null,31,"Ajuste en Contribuciones a Cargo del Trabajador Pagadas por el Patrón Exento"]
[null,10,"Premios por puntualidad","02 Sueldos (Incluye ingresos señalados en la fracción I del artículo 94 de LISR)",32,"Ajuste en Premios por puntualidad Gravado"]
[null,11,"Prima de Seguro de vida","02 Sueldos (Incluye ingresos señalados en la fracción I del artículo 94 de LISR)","084","Ajuste en Prima de Seguro de vida Gravado",33,"Ajuste en Prima de Seguro de vida Exento"]
[null,12,"Seguro de Gastos Médicos Mayores","02 Sueldos (Incluye ingresos señalados en la fracción I del artículo 94 de LISR)","084","Ajuste en Prima de Seguro de vida Gravado",33,"Ajuste en Prima de Seguro de vida Exento"]
[null,13,"Cuotas Sindicales Pagadas por el Patrón","02 Sueldos (Incluye ingresos señalados en la fracción I del artículo 94 de LISR)",null,null,35,"Ajuste en Cuotas Sindicales Pagadas por el Patrón Exento"]
[null,14,"Subsidios por incapacidad","02 Sueldos (Incluye ingresos señalados en la fracción I del artículo 94 de LISR)",6,"Descuento por incapacidad"]
[null,null,null,null,"086","Ajuste en Subsidios por incapacidad Gravado",36,"Ajuste en Subsidios por incapacidad Exento"]
[null,15,"Becas para trabajadores y/o hijos","02 Sueldos (Incluye ingresos señalados en la fracción I del artículo 94 de LISR)","087","Ajuste en Becas para trabajadores y/o hijos Gravado",37,"Ajuste en Becas para trabajadores y/o hijos Exento"]
[null,19,"Horas extra","02 Sueldos (Incluye ingresos señalados en la fracción I del artículo 94 de LISR)",39,"Ajuste en Horas extra Gravado",38,"Ajuste en Horas extra Exento"]
[null,20,"Prima dominical","02 Sueldos (Incluye ingresos señalados en la fracción I del artículo 94 de LISR)",41,"Ajuste en Prima dominical Gravado",40,"Ajuste en Prima dominical Exento"]
[null,21,"Prima vacacional","02 Sueldos (Incluye ingresos señalados en la fracción I del artículo 94 de LISR)",43,"Ajuste en Prima vacacional Gravado",42,"Ajuste en Prima vacacional Exento"]
[null,22,"Prima por antigüedad","13 Indemnización o Separación",45,"Ajuste en Prima por antigüedad Gravado",44,"Ajuste en Prima por antigüedad Exento"]
[null,23,"Pagos por separación","13 Indemnización o Separación",47,"Ajuste en Pagos por separación Gravado",46,"Ajuste en Pagos por separación Exento",67,"Ajuste en Pagos por separación Acumulable",68,"Ajuste en Pagos por separación No acumulable"]
[null,24,"Seguro de retiro","02 Sueldos (Incluye ingresos señalados en la fracción I del artículo 94 de LISR)","088","Ajuste en Seguro de retiro Gravado",48,"Ajuste en Seguro de retiro Exento"]
[null,25,"Indemnizaciones","13 Indemnización o Separación",50,"Ajuste en Indemnizaciones Gravado",49,"Ajuste en Indemnizaciones Exento"]
[null,26,"Reembolso por funeral","02 Sueldos (Incluye ingresos señalados en la fracción I del artículo 94 de LISR)",null,null,51,"Ajuste en Reembolso por funeral Exento"]
[null,27,"Cuotas de seguridad social pagadas por el patrón","02 Sueldos (Incluye ingresos señalados en la fracción I del artículo 94 de LISR)",null,null,52,"Ajuste en Cuotas de seguridad social pagadas por el patrón Exento"]
[null,28,"Comisiones","02 Sueldos (Incluye ingresos señalados en la fracción I del artículo 94 de LISR)",53,"Ajuste en Comisiones Gravado"]
[null,29,"Vales de despensa","02 Sueldos (Incluye ingresos señalados en la fracción I del artículo 94 de LISR)","089","Ajuste en Vales de despensa Gravado",54,"Ajuste en Vales de despensa Exento"]
[null,30,"Vales de restaurante","02 Sueldos (Incluye ingresos señalados en la fracción I del artículo 94 de LISR)","090","Ajuste en Vales de restaurante Gravado",55,"Ajuste en Vales de restaurante Exento"]
[null,31,"Vales de gasolina","02 Sueldos (Incluye ingresos señalados en la fracción I del artículo 94 de LISR)","091","Ajuste en Vales de gasolina Gravado",56,"Ajuste en Vales de gasolina Exento"]
[null,32,"Vales de ropa","02 Sueldos (Incluye ingresos señalados en la fracción I del artículo 94 de LISR)","092","Ajuste en Vales de ropa Gravado",57,"Ajuste en Vales de ropa Exento"]
[null,33,"Ayuda para renta","02 Sueldos (Incluye ingresos señalados en la fracción I del artículo 94 de LISR)","093","Ajuste en Ayuda para renta Gravado",58,"Ajuste en Ayuda para renta Exento"]
[null,34,"Ayuda para artículos escolares","02 Sueldos (Incluye ingresos señalados en la fracción I del artículo 94 de LISR)","094","Ajuste en Ayuda para artículos escolares Gravado",59,"Ajuste en Ayuda para artículos escolares Exento"]
[null,35,"Ayuda para anteojos","02 Sueldos (Incluye ingresos señalados en la fracción I del artículo 94 de LISR)","095","Ajuste en Ayuda para anteojos Gravado",60,"Ajuste en Ayuda para anteojos Exento"]
[null,36,"Ayuda para transporte","02 Sueldos (Incluye ingresos señalados en la fracción I del artículo 94 de LISR)","096","Ajuste en Ayuda para transporte Gravado",61,"Ajuste en Ayuda para transporte Exento"]
[null,37,"Ayuda para gastos de funeral","02 Sueldos (Incluye ingresos señalados en la fracción I del artículo 94 de LISR)","097","Ajuste en Ayuda para gastos de funeral Gravado",62,"Ajuste en Ayuda para gastos de funeral Exento"]
[null,38,"Otros ingresos por salarios","02 Sueldos (Incluye ingresos señalados en la fracción I del artículo 94 de LISR)",64,"Ajuste en Otros ingresos por salarios Gravado",63,"Ajuste en Otros ingresos por salarios Exento"]
[null,39,"Jubilaciones, pensiones o haberes de retiro","03 Jubilados\n04 Pensionados\n12 Jubilados o pensionados",66,"Ajuste en Jubilaciones, pensiones o haberes de retiro en una sola exhibición Gravado",65,"Ajuste en Jubilaciones, pensiones o haberes de retiro en una sola exhibición Exento "]
[null,44,"Jubilaciones, pensiones o haberes de retiro en parcialidades",null,70,"Ajuste en Jubilaciones, pensiones o haberes de retiro en parcialidades Gravado",69,"Ajuste en Jubilaciones, pensiones o haberes de retiro en parcialidades Exento"]
[null,45,"Ingresos en acciones o títulos valor que representan bienes","05 Asimilados Miembros Sociedades Cooperativas Produccion\n06 Asimilados Integrantes Sociedades Asociaciones Civiles\n07 Asimilados Miembros consejos\n08 Asimilados comisionistas\n09 Asimilados honorarios\n10 Asimilados acciones\n11 Asimilados otros\n"]
[null," 046","Ingresos asimilados a salarios",null,"098","Ajuste a ingresos asimilados a salarios gravados"]
[null," 047","Alimentación diferentes a los establecidos en el Art 94 último párrafo LISR","02 Sueldos (Incluye ingresos señalados en la fracción I del artículo 94 de LISR)",75,"Ajuste en Alimentación Gravado",74,"Ajuste en Alimentación Exento"]
[null,48,"Habitación","02 Sueldos (Incluye ingresos señalados en la fracción I del artículo 94 de LISR)",77,"Ajuste en Habitación Gravado",76,"Ajuste en Habitación Exento"]
[null,49,"Premios por asistencia","02 Sueldos (Incluye ingresos señalados en la fracción I del artículo 94 de LISR)",78,"Ajuste en Premios por asistencia"]
[null,50,"Viáticos","02 Sueldos (Incluye ingresos señalados en la fracción I del artículo 94 de LISR)",80,"Ajuste en Viáticos gravados",100,"Ajuste en Viáticos exentos"]
[null,51,"Pagos por gratificaciones, primas, compensaciones, recompensas u otros a extrabajadores derivados de jubilación en parcialidades","03 Jubilados\n04 Pensionados\n12 Jubilados o pensionados",102,"Ajuste a pagos por gratificaciones, primas, compensaciones, recompensas u otros a extrabajadores derivados de jubilación en parcialidades, gravados"]
[null,52,"Pagos que se realicen a extrabajadores que obtengan una jubilación en parcialidades derivados de la ejecución de resoluciones judicial o de un laudo",null,103,"Ajuste a pagos que se realicen a extrabajadores que obtengan una jubilación en parcialidades derivados de la ejecución de una resolución judicial o de un laudo gravados",104,"Ajuste a pagos que se realicen a extrabajadores que obtengan una jubilación en parcialidades derivados de la ejecución de una resolución judicial o de un laudo exentos"]
[null,53,"Pagos que se realicen a extrabajadores que obtengan una jubilación en una sola exhibición derivados de la ejecución de resoluciones judicial o de un laudo",null,105,"Ajuste a pagos que se realicen a extrabajadores que obtengan una jubilación en una sola exhibición derivados de la ejecución de una resolución judicial o de un laudo gravados",106,"Ajuste a pagos que se realicen a extrabajadores que obtengan una jubilación en una sola exhibición derivados de la ejecución de una resolución judicial o de un laudo exentos"]

{"sheet":"ERROR","index":3,"n_rows":40,"n_cols":9,"rows_kept":40,"cut":false,"hidden":true,"merged":[]}
[]
[]
[null,"Nómina de la 2a. Quincena de enero 2025"]
[null,"Se timbro la exención de horas extras con el salario mínimo en lugar de la UMA"]
[]
[null,"Tipo","Descripción","Gravado","Exento",null,"Tipo","Descripción","Importe"]
[null,1,"Sueldos, Salarios  Rayas y Jornales",{"$f":"D20*15","v":9750},null,null,1,"IMSS",136]
[null,19,"Horas extra",{"$f":"D23","v":731.25},{"$f":"D23","v":731.25},null,2,"ISR",780]
[null,null,"Tipo de horas","02"]
[null,null,"Días",3]
[null,null,"Horas ",{"$f":"D19","v":9}]
[null,null,"Importe ",{"$f":"D22","v":1462.5}]
[]
[null,"Tipo","Descripción","Importe"]
[null,2,"Subsidio para el empleo (efectivamente entregado al trabajador).",0]
[null,null,"Subsidio al empleo causado",0]
[]
[null,null,"Determinación de horas extras","Incorrecto","Correcto"]
[null,null,"No. de horas",9,{"$f":"D19","v":9}]
[null,null,"Salario diario",650,{"$f":"D20","v":650}]
[null,null,"Cuota por hora extra",{"$f":"D20/4","v":162.5},162.5]
[null,null,"Importe horas extras",{"$f":"D19*D21","v":1462.5},1462.5]
[null,null,"(x) 50%",{"$f":"D22*0.5","v":731.25},731.25]
[null,null,"vs"]
[null,null,"5 salarios mínimos por semana",{"$f":"278.8*5","v":1394},{"$f":"5*113.14","v":565.70000000000005},{"$f":"E8-E25","v":165.54999999999995},"Diferencia de exento"]
[]
[]
[null,"Nómina 2a. Quincena de noviembre de 2025"]
[]
[null,"Tipo","Descripción","Gravado","Exento",null,"Tipo","Descripción","Importe"]
[null,1,"Sueldos, Salarios  Rayas y Jornales",{"$f":"D20*15","v":9750},null,null,1,"IMSS",136]
[null,19,"Horas extra",{"$f":"F25","v":165.54999999999995},null,null,2,"ISR",780]
[null,null,"Tipo de horas","02",null,null,38,"Ajuste en Horas extra Exento",{"$f":"D32","v":165.54999999999995}]
[null,null,"Días",3]
[null,null,"Horas ",{"$f":"D43","v":0}]
[null,null,"Importe ",{"$f":"D46","v":0}]
[]
[null,"Tipo","Descripción","Importe"]
[null,2,"Subsidio para el empleo (efectivamente entregado al trabajador).",0]
[null,null,"Subsidio al empleo causado",0]

{"sheet":"PREVISION","index":4,"n_rows":75,"n_cols":9,"rows_kept":75,"cut":false,"hidden":true,"merged":[[40,1,40,5],[45,1,45,2],[51,1,51,2],[53,1,53,2]]}
[]
[null,null,"Capture información en las celdas de color verde",null,null,"Ir al MENÚ"]
[]
[null,"c_TipoPercepcion","Descripción","Tipo de régimen","Gravado","Exento","¿Previsión social?","¿Con límite?"]
[null,1,"Sueldos, Salarios  Rayas y Jornales","02",198500,null,"No","No aplica"]
[null,2,"Gratificación Anual (Aguinaldo)","02",5000,{"$f":"113.14*30","v":3394.2},"No","No aplica"]
[null,3,"Participación de los Trabajadores en las Utilidades PTU","02",null,null,"No","No aplica"]
[null,4,"Reembolso de Gastos Médicos Dentales y Hospitalarios","02",null,null,"Sí","No"]
[null,5,"Fondo de Ahorro","02",null,{"$f":"E5*0.13","v":25805},"Sí","No"]
[null,6,"Caja de ahorro","02",null,null,"Sí","Sí"]
[null,9,"Contribuciones a Cargo del Trabajador Pagadas por el Patrón","02",null,null,"No","No aplica"]
[null,10,"Premios por puntualidad","02",18000,null,"No","No aplica"]
[null,11,"Prima de Seguro de vida","02",null,null,"Sí","No"]
[null,12,"Seguro de Gastos Médicos Mayores","02",null,null,"Sí","No"]
[null,13,"Cuotas Sindicales Pagadas por el Patrón","02",null,null,"No","No"]
[null,14,"Subsidios por incapacidad","02",null,null,"Sí","Sí"]
[null,15,"Becas para trabajadores y/o hijos","02",null,null,"Sí","Sí"]
[null,19,"Horas extra","02",null,null,"No","No aplica"]
[null,20,"Prima dominical","02",null,null,"No","No aplica"]
[null,21,"Prima vacacional","02",null,null,"No","No aplica"]
[null,24,"Seguro de retiro","02",null,null,"Sí","Sí"]
[null,26,"Reembolso por funeral","02",null,null,"Sí","No"]
[null,27,"Cuotas de seguridad social pagadas por el patrón","02",null,null,"No","No aplica"]
[null,28,"Comisiones","02",null,null,"No","No aplica"]
[null,29,"Vales de despensa","02",null,50000,"Sí","Sí"]
[null,30,"Vales de restaurante","02",null,18000,"Sí","Sí"]
[null,31,"Vales de gasolina","02",null,null,"Sí","Sí"]
[null,32,"Vales de ropa","02",null,null,"Sí","Sí"]
[null,33,"Ayuda para renta","02",null,null,"Sí","Sí"]
[null,34,"Ayuda para artículos escolares","02",null,null,"Sí","Sí"]
[null,35,"Ayuda para anteojos","02",null,null,"Sí","Sí"]
[null,36,"Ayuda para transporte","02",null,null,"Sí","Sí"]
[null,37,"Ayuda para gastos de funeral","02",null,null,"Sí","Sí"]
[null,38,"Otros ingresos por salarios","02",null,null,"No","No aplica","Dependiendo lo que se pague"]
[null," 047","Alimentación diferentes a los establecidos en el Art 94 último párrafo LISR","02",null,null,"Sí","Sí"]
[null,48,"Habitación","02",null,null,"Sí","Sí"]
[null,49,"Premios por asistencia","02",null,null,"No","No aplica"]
[null,50,"Viáticos","02",null,null,"No","No aplica"]
[null,null,null,"Totales",{"$f":"SUM(E5:E38)","v":221500},{"$f":"SUM(F5:F38)","v":97199.2}]
[]
[null,"La exención aplicable a los ingresos obtenidos por concepto de prestaciones de previsión social se limitará cuando la suma de los ingresos por la prestación de servicios personales subordinados o aquellos que reciban, por parte de las sociedades cooperativas, los socios o miembros de las mismas y el monto de la exención exceda de una cantidad equivalente a siete veces el salario mínimo general del área geográfica del contribuyente, elevado al año; cuando dicha suma exceda de la cantidad citada, solamente se considerará como ingreso no sujeto al pago del impuesto un monto hasta de un salario mínimo general del área geográfica del contribuyente, elevado al año. Esta limitación en ningún caso deberá dar como resultado que la suma de los ingresos por la prestación de servicios personales subordinados o aquellos que reciban, por parte de las sociedades cooperativas, los socios o miembros de las mismas y el importe de la exención, sea inferior a siete veces el salario mínimo general del área geográfica del contribuyente, elevado al año\nFundamento: Artículo 93 sexto párrafo LISR"]
[]
[null,null,"Valor de la UMA",113.14]
[null,null,"7 UMAS elevadas al año",{"$f":"IFERROR(ROUND(D43*7*365,2),\"\")","v":289072.7},"①"]
[null,null,"1 UMA elevada al año",{"$f":"IFERROR(ROUND(D43*365,2),\"\")","v":41296.1},"③"]
[null,"Se consideran ingresos por la prestación de un servicio personal subordinado, los salarios y demás prestaciones que deriven de una relación laboral, incluyendo la participación de los trabajadores en las utilidades de las empresas y las prestaciones percibidas como consecuencia de la terminación de la relación laboral.\nFundamento: Artículo 94 primer párrafo LISR"]
[null,null,"Ingresos por salarios",{"$f":"IFERROR(E39,\"\")","v":221500}]
[null,null,"(+) Previsión social con límite",{"$f":"SUMIFS(F5:F38,G5:G38,\"Sí\",H5:H38,\"Sí\")","v":68000}]
[null,null,"(=) Resultado I",{"$f":"SUM(D47:D48)","v":289500},"②"]
[null,null,"Comprar contra 7 UMAS elevadas al año",{"$f":"D44","v":289072.7},"①"]
[]
[null,"Sí ②>① entonces el límite de la exención es de 1 uma elevada al año",null,{"$f":"D45","v":41296.1},"③"]
[]
[null,"Comprar los ingresos por salarios + el tope máximo de previsión social cuando la previsión social con límite es >= tope máximo"]
[null,null,"Ingresos por salarios",{"$f":"IF(D49>D50,D47,\"\")","v":221500}]
[null,null,"(+) Tope máximo de exención",{"$f":"IF(D49>D50,IF(D48>=D52,D52,D48),\"\")","v":41296.1}]
[null,null,"(=) Resultado II",{"$f":"IF(D49>D50,SUM(D55:D56),\"\")","v":262796.09999999998},"④"]
[]
[null,null,"El resultado ④ no puede ser inferior a ①"]
[]
[null,null,"Previsión social sin límite exenta",{"$f":"SUMIFS(F5:F38,G5:G38,\"Sí\",H5:H38,\"No\")","v":25805}]
[null,null,"(+) Previsión social gravada",{"$f":"IFERROR(IF(D48>=D63,D48-D63,0),0)","v":427.29999999998836}]
[null,null,"(+) Previsión social exenta con límite",{"$f":"IF(D57>=D50,D56,IF(D57<D50,D50-D55,\"\"))","v":67572.700000000012}]
[null,null,"(=) Total de previsión social",{"$f":"SUM(D61:D63)","v":93805}]
[]
[]
[null,"Tipo de nómina","O = Ordinaria"]
[null,"Nómina semana 49"]
[null,"c_TipoPercepcion","Descripción","Gravado","Exento",null,"Descripción","Importe"]
[null,1,"Sueldos, Salarios  Rayas y Jornales",3500,null,null,"Seguridad social",120]
[null,30,"Vales de restaurante",{"$f":"D62","v":427.29999999998836},null,null,"ISR",650]
[null,null,null,null,null,null,"Ajuste en Vales de restaurante Exento",{"$f":"D71","v":427.29999999998836}]
[null," c_TipoOtroPago","Descripción","Importe"]
[null,2,"Subsidio para el empleo (efectivamente entregado al trabajador).",0]
[null,null,"Subsidio al empleo causado",0]

{"sheet":"NOMINA","index":5,"n_rows":5,"n_cols":72,"rows_kept":5,"cut":false,"hidden":true,"merged":[[3,51,3,52],[3,53,3,56],[3,57,3,61],[3,62,3,66],[3,67,3,69]]}
[null,null,null,null,null,null,null,null,null,null,null,null,null,null,null,null,null,null,null,null,null,null,null,null,null,null,null,null,null,{"$f":"IF(AND(AA6>=2,AA6<=4,AE6>=1,AE6<=8),0,1)","v":1}]
[]
[]
[null,null,null,null,null,null,null,null,null,null,null,null,null,null,null,null,null,null,null,null,null,null,null,null,null,null,null,null,null,null,null,null,null,null,null,null,null,null,null,null,null,null,null,null,null,null,null,null,null,null,null,"Venta acciones",null,"Tiempo extra",null,null,null,"Jubilaciones, pensiones, retiro",null,null,null,null,"Pagos por separación",null,null,null,null,"Incapacidades"]
[null,"Fecha de emisión","Fecha de timbrado","UUID","Concepto","Serie","Folio","Forma de pago","Metodo de pago","Moneda","Registro patronal","Nombre del patron","Riesgo de puesto","Concepto riesgo de puesto (este dato no pertenece al XML)","No. De empleado","Nombre del empleado","Departamento","Puesto","Clave de la entidad federrativa","Estado (este dato no pertenece al XML)","CURP","RFC","No. SS","Fecha inicio relación laboral","Salario diario integrado","Salario base de cotización","Tipo de regimen","Tipo de régimen (este dato no pertenece al XML)","Tipo de jornada","Tipo de jornada (este dato no pertenece al XML)","Tipo de contrato","Tipo de contrato (este dato no pertenece al XML)","Antigüedad","Fecha inicial pago","Fecha final pago","Fecha de pago","Periodicidad de pago","Periodicidad de pago  (este dato no pertenece al XML)","Clave de percepción","Percepción","Percepción de acuerdo al catálogo del SAT  (este dato no pertenece al XML)","Percepción exenta","Percepción gravado","Clave de deducción","Deducción","Deducción de acuerdo al catálogo del SAT  (este dato no pertenece al XML)","Importe deducción","Total del comprobante","Tipo de relación","UUID tipo de relación","Subsidio al empleo causado","Valor de mercado","Precio al otorgarse","Días","Tipo de horas","Horas extras","Importe pagado","Total en una sola exhibición","Total parcialidad","Monto diario","Ingreso acumulable","Ingreso no acumulable","Total pagado","No. de años de servicio","Último sueldo mensual ordinario","Ingreso acumulable","Ingreso no acumulable","Días de incapacidad","Tipo de incapacidad","Importe monetario","Dìas pagados","Ruta"]

{"sheet":"VISORN","index":6,"n_rows":54,"n_cols":19,"rows_kept":54,"cut":false,"hidden":true,"merged":[[49,2,49,5],[50,2,50,5],[51,2,51,5],[42,2,42,5],[43,2,43,5],[44,2,44,5],[45,2,45,5],[46,2,46,5],[48,2,48,5],[41,2,41,5],[30,2,30,5],[31,2,31,5],[32,2,32,5],[33,2,33,5],[34,2,34,5],[35,2,35,5],[36,2,36,5],[37,2,37,5],[38,2,38,5],[39,2,39,5],[40,2,40,5],[29,2,29,5],[18,2,18,5],[19,2,19,5],[20,2,20,5],[21,2,21,5],[22,2,22,5],[23,2,23,5],[24,2,24,5],[25,2,25,5],[26,2,26,5],[27,2,27,5],[28,2,28,5],[17,2,17,5],[6,1,6,5],[8,2,8,5],[9,2,9,5],[10,2,10,5],[11,2,11,5],[12,2,12,5],[13,2,13,5],[14,2,14,5],[15,2,15,5],[16,2,16,5]]}
[]
[]
[]
[null,null,"Ejercicio"]
[]
[]
[null,"Concepto",null,null,null,null,"Total","Enero","Febrero","Marzo","Abril","Mayo","Junio","Julio","Agosto","Septiembre","Octubre","Noviembre","Diciembre"]
[]
[null,null,"Comprobantes emitidos "]
[]
[null,null,"Pagos totales por sueldos y salarios"]
[]
[null,null,"Pagos por sueldos salarios"]
[null,"(-)","Total ajustes sueldos y salarios (gravados y exentos)"]
[]
[null,null,"Pagos totales por sueldos y salarios exentos"]
[null,null,"Pagos por sueldos salarios exentos"]
[null,"(-)","Total ajustes sueldos y salarios exentos"]
[]
[null,null,"Pagos por aguinaldo exento"]
[null,null,"Pagos por aguinaldo exento"]
[null,"(-)","Total ajustes aguinaldo exento"]
[]
[null,null,"Pagos por prima vacacional exenta"]
[null,null,"Pagos por prima vacacional exento"]
[null,"(-)","Total ajustes prima vacacional exento"]
[]
[null,null,"Subsidio para el empleo que le correspondió a los trabajadores"]
[null,null,"Total del subsidio para el empleo que le correspondió a los trabajadores"]
[null,"(-)","Total de ajustes al subsidio para el empleo que le correspondió a los trabajadores"]
[]
[null,null,"Subsidio para el empleo pagado en efectivo a los trabajadores"]
[null,null,"Total del subsidio para el empleo pagado a los trabajadores"]
[null,"(-)","Total ajustes subsidio para el empleo pagado a los trabajadores"]
[]
[null,null,"ISR retenido"]
[null,null,"Impuesto sobre la renta retenido"]
[null,"(-)","Total ajustes del impuesto sobre la renta retenido"]
[null,"(+)","Total ISR Retenido de ejercicio anterior"]
[null,"(-)","Total aplicación de saldo a favor por compensación anual"]
[null,"(-)","Total reintegro de ISR retenido en exceso de ejercicio anterior"]
[]
[null,null,"Resumen pagos de nómina"]
[null,null,"Pagos de sueldos"]
[null,null,"Pagos exentos de sueldos"]
[null,null,"Pagos de asimilados a salarios"]
[]
[]
[null,null,"Pagos totales por asimilados a salarios"]
[null,null,"Número de CFDI emitidos"]
[null,null,"Pagos por asimilados a salarios"]
[null,"(-)","Total ajustes sueldos y salarios (gravados y exentos)"]
[]
[null,null,"Impuesto retenido asimilados a salarios"]

{"sheet":"DATOS","index":7,"n_rows":50,"n_cols":10,"rows_kept":50,"cut":false,"hidden":true,"merged":[]}
[]
[]
[]
[null,"LICENCIA"]
[null,"NOMBRE"]
[null,"RFC"]
[]
[null,"No. para solicitar contraseña",null,{"$f":"IFERROR(MID(C4,2,1)&MID(C5,3,2)&MID(C6,5,3),\"\")","v":""}]
[]
[null,"Contraseña para ingresar",null,{"$f":"C12&C13&C14&C15&C16&C17","v":""},null,null,null,null,"A",5]
[null,null,null,null,null,null,null,null,"B",9]
[null,{"$f":"IFERROR(MID($D$8,1,1),X)","v":""},{"$f":"IFERROR(VLOOKUP(B12,$I$10:$J$51,2,FALSE),\"\")","v":""},null,null,null,null,null,"C",2]
[null,{"$f":"IFERROR(MID($D$8,2,1),X)","v":""},{"$f":"IFERROR(VLOOKUP(B13,$I$10:$J$51,2,FALSE),\"\")","v":""},null,null,null,null,null,"D",4]
[null,{"$f":"IFERROR(MID($D$8,3,1),X)","v":""},"",null,null,null,null,null,"E",8]
[null,{"$f":"IFERROR(MID($D$8,4,1),X)","v":""},{"$f":"IFERROR(VLOOKUP(B15,$I$10:$J$51,2,FALSE),\"\")","v":""},null,null,null,null,null,"F",3]
[null,{"$f":"IFERROR(MID($D$8,5,1),X)","v":""},"",null,null,null,null,null,"G",7]
[null,{"$f":"IFERROR(MID($D$8,6,1),X)","v":""},"",null,null,null,null,null,"H",2]
[null,null,null,null,null,null,null,null,"I",9]
[null,null,null,null,null,null,null,null,"J",6]
[null,null,null,null,null,null,null,null,"K",1]
[null,null,null,null,null,null,null,null,"L",8]
[null,null,null,null,null,null,null,null,"M",2]
[null,null,null,null,null,null,null,null,"N",0]
[null,null,null,null,null,null,null,null,"Ñ",4]
[null,null,null,null,null,null,null,null,"O",7]
[null,null,null,null,null,null,null,null,"P",3]
[null,null,null,null,null,null,null,null,"Q",9]
[null,null,null,null,null,null,null,null,"R",5]
[null,null,null,null,null,null,null,null,"S",2]
[null,null,null,null,null,null,null,null,"T",4]
[null,null,null,null,null,null,null,null,"U",7]
[null,null,null,null,null,null,null,null,"V",6]
[null,null,null,null,null,null,null,null,"W",5]
[null,null,null,null,null,null,null,null,"X",9]
[null,null,null,null,null,null,null,null,"Y",3]
[null,null,null,null,null,null,null,null,"Z",8]
[null,null,null,null,null,null,null,null,"&",4]
[null,null,null,null,null,null,null,null,"0","A"]
[null,null,null,null,null,null,null,null,"1","D"]
[null,null,null,null,null,null,null,null,"2","G"]
[null,null,null,null,null,null,null,null,"3","T"]
[null,null,null,null,null,null,null,null,"4","R"]
[null,null,null,null,null,null,null,null,"5","H"]
[null,null,null,null,null,null,null,null,"6","C"]
[null,null,null,null,null,null,null,null,"7","K"]
[null,null,null,null,null,null,null,null,"8","O"]
[null,null,null,null,null,null,null,null,"9","P"]
[null,null,null,null,null,null,null,null,".","&"]
[null,null,null,null,null,null,null,null,",","Y"]
[null,null,null,null,null,null,null,null," ","K"]

{"sheet":"TARIFA","index":8,"n_rows":86,"n_cols":5,"rows_kept":86,"cut":false,"hidden":true,"merged":[[71,1,71,4]]}
[null,"Tarifas de retencionde 2023 anexo 8 RMF2023"]
[]
[]
[]
[]
[]
[]
[]
[]
[]
[]
[]
[]
[]
[]
[]
[]
[]
[]
[]
[]
[]
[]
[]
[]
[]
[]
[]
[]
[]
[]
[]
[]
[]
[]
[]
[]
[]
[]
[]
[]
[]
[]
[]
[]
[]
[]
[]
[]
[]
[]
[]
[]
[]
[]
[]
[]
[]
[]
[]
[]
[]
[]
[]
[]
[]
[]
[]
[]
[]
[]
[null,"2. Tarifa para el cálculo del impuesto correspondiente al ejercicio 2025"]
[null,"Límite inferior","Límite superior","Cuota fija","Por ciento para aplicarse sobre"]
[null,null,null,null,"el excedente del límite inferior"]
[null,"$","$","$","%"]
[null,0.01,8952.49,0,1.92]
[null,8952.5,75984.55,171.88,6.4]
[null,75984.56,133536.07,4461.9399999999996,10.88]
[null,133536.07999999999,155229.79999999999,10723.55,16]
[null,155229.81,185852.57,14194.54,17.920000000000002]
[null,185852.58,374837.88,19682.13,21.36]
[null,374837.89,590795.99,60049.4,23.52]
[null,590796,1127926.8400000001,110842.74,30]
[null,1127926.8500000001,1503902.46,271981.99,32]
[null,1503902.47,4511707.37,392294.17,34]
[null,4511707.38,"En adelante",1414947.85,35]

{"sheet":"TARIFAS","index":9,"n_rows":244,"n_cols":9,"rows_kept":244,"cut":false,"hidden":true,"merged":[[3,1,3,4],[3,6,3,8],[4,6,4,8],[36,1,36,4],[51,1,51,4],[67,1,67,4],[83,1,83,4],[99,1,99,4],[115,1,115,4],[131,1,131,4],[229,1,229,4],[147,1,147,4],[163,1,163,4],[179,1,179,4],[195,1,195,4],[211,1,211,4]]}
[]
[]
[]
[null,"5. Tarifa aplicable durante 2022 para el cálculo de los pagos provisionales mensuales.",null,null,null,null,"Tabla del subsidio para el empleo aplicable a la tarifa del numeral 5 del rubro B."]
[null,"Límite inferior","Límite superior","Cuota fija","Por ciento para aplicarse sobre",null,"Monto de ingresos que sirven de base para calcular el impuesto"]
[null,null,null,null,"el excedente del límite inferior",null,"Para Ingresos de","Hasta Ingresos de","Cantidad de subsidio para el empleo mensual"]
[null,"$","$","$","%",null,"$","$","$"]
[null,0.01,644.58000000000004,0,1.92,null,0.01,1768.96,407.02]
[null,644.59,5470.92,12.38,6.4,null,1768.97,2653.38,406.83]
[null,5470.93,9614.66,321.26,10.88,null,2653.39,3472.84,406.62]
[null,9614.67,11176.62,772.1,16,null,3472.85,3537.87,392.77]
[null,11176.63,13381.47,1022.01,17.920000000000002,null,3537.88,4446.1499999999996,382.46]
[null,13381.48,26988.5,1417.12,21.36,null,4446.16,4717.18,354.23]
[null,26988.51,42537.58,4323.58,23.52,null,4717.1899999999996,5335.42,324.87]
[null,42537.59,81211.25,7980.73,30,null,5335.43,6224.67,294.63]
[null,81211.259999999995,108281.67,19582.830000000002,32,null,6224.68,7113.9,253.54]
[null,108281.68,324845.01,28245.360000000001,34,null,7113.91,7382.33,217.61]
[null,324845.02,"En adelante",101876.9,35,null,7382.34,"En adelante",0]
[]
[]
[]
[null,"Descripción","Días"]
[null,"Diario",1]
[null,"Semanal",7]
[null,"Catorcenal",14]
[null,"Quincenal",30]
[null,"Mensual",30]
[null,"Bimestral",60]
[null,"Unidad obra",30]
[null,"Comisión",30]
[null,"Precio alzado",30]
[null,"Decenal",10]
[null,"Otra Periodicidad",30]
[]
[]
[]
[null,"VI. Tarifa del mes de enero de 2025, para efectuar los pagos provisionales mensuales a que se refiere el artículo 106 de la Ley del ISR, aplicable a los ingresos que perciban los contribuyentes a que se refiere el Título IV, Capítulo II, Sección I de la Ley del ISR."]
[null,"Límite inferior","Límite superior","Cuota fija","Por ciento para aplicarse sobre el excedente del límite inferior"]
[null,"$","$","$","%"]
[null,0.01,746.04,0,1.92]
[null,746.05,6332.05,14.32,6.4]
[null,6332.06,11128.01,371.83,10.88]
[null,11128.02,12935.82,893.63,16]
[null,12935.83,15487.71,1182.8800000000001,17.920000000000002]
[null,15487.72,31236.49,1640.18,21.36]
[null,31236.5,49233,5004.12,23.52]
[null,49233.01,93993.9,9236.89,30]
[null,93993.91,125325.2,22665.17,32]
[null,125325.21,375975.61,32691.18,34]
[null,375975.62,"En adelante",117912.32000000001,35]
[]
[null,"Tarifa para el pago provisional del mes de febrero de 2025, aplicable a los ingresos que perciban los contribuyentes a que se refiere el Capítulo II, Sección I, del Título IV de la Ley del Impuesto sobre la Renta."]
[null,"Límite inferior","Límite superior","Cuota fija","Por ciento para aplicarse sobre"]
[null,null,null,null,"el excedente del límite inferior"]
[null,"$","$","$","%"]
[null,0.01,1492.08,0,1.92]
[null,1492.09,12664.1,28.64,6.4]
[null,12664.11,22256.02,743.66,10.88]
[null,22256.03,25871.64,1787.26,16]
[null,25871.65,30975.42,2365.7600000000002,17.920000000000002]
[null,30975.43,62472.98,3280.36,21.36]
[null,62472.99,98466,10008.24,23.52]
[null,98466.01,187987.8,18473.78,30]
[null,187987.81,250650.4,45330.34,32]
[null,250650.41,751951.22,65382.36,34]
[null,751951.23,"En adelante",235824.64000000001,35]
[]
[null,"Tarifa para el pago provisional del mes de marzo de 2025, aplicable a los ingresos que perciban los contribuyentes a que se refiere el Capítulo II, Sección I, del Título IV de la Ley del Impuesto sobre la Renta."]
[null,"Límite inferior","Límite superior","Cuota fija","Por ciento para aplicarse sobre"]
[null,null,null,null,"el excedente del límite inferior"]
[null,"$","$","$","%"]
[null,0.01,2238.12,0,1.92]
[null,2238.13,18996.150000000001,42.96,6.4]
[null,18996.16,33384.03,1115.49,10.88]
[null,33384.04,38807.46,2680.89,16]
[null,38807.47,46463.13,3548.64,17.920000000000002]
[null,46463.14,93709.47,4920.54,21.36]
[null,93709.48,147699,15012.36,23.52]
[null,147699.01,281981.7,27710.67,30]
[null,281981.71000000002,375975.6,67995.509999999995,32]
[null,375975.61,1127926.83,98073.54,34]
[null,1127926.8400000001,"En adelante",353736.96000000002,35]
[]
[null,"Tarifa para el pago provisional del mes de abril de 2025, aplicable a los ingresos que perciban los contribuyentes a que se refiere el Capítulo II, Sección I, del Título IV de la Ley del Impuesto sobre la Renta."]
[null,"Límite inferior","Límite superior","Cuota fija","Por ciento para aplicarse sobre"]
[null,null,null,null,"el excedente del límite inferior"]
[null,"$","$","$","%"]
[null,0.01,2984.16,0,1.92]
[null,2984.17,25328.2,57.28,6.4]
[null,25328.21,44512.04,1487.32,10.88]
[null,44512.05,51743.28,3574.52,16]
[null,51743.29,61950.84,4731.5200000000004,17.920000000000002]
[null,61950.85,124945.96,6560.72,21.36]
[null,124945.97,196932,20016.48,23.52]
[null,196932.01,375975.6,36947.56,30]
[null,375975.61,501300.8,90660.68,32]
[null,501300.81,1503902.44,130764.72,34]
[null,1503902.45,"En adelante",471649.28000000003,35]
[]
[null,"Tarifa para el pago provisional del mes de mayo de 2025, aplicable a los ingresos que perciban los contribuyentes a que se refiere el Capítulo II, Sección I, del Título IV de la Ley del Impuesto sobre la Renta."]
[null,"Límite inferior","Límite superior","Cuota fija","Por ciento para aplicarse sobre"]
[null,null,null,null,"el excedente del límite inferior"]
[null,"$","$","$","%"]
[null,0.01,3730.2,0,1.92]
[null,3730.21,31660.25,71.599999999999994,6.4]
[null,31660.26,55640.05,1859.15,10.88]
[null,55640.06,64679.1,4468.1499999999996,16]
[null,64679.11,77438.55,5914.4,17.920000000000002]
[null,77438.559999999998,156182.45000000001,8200.9,21.36]
[null,156182.46,246165,25020.6,23.52]
[null,246165.01,469969.5,46184.45,30]
[null,469969.51,626626,113325.85,32]
[null,626626.01,1879878.05,163455.9,34]
[null,1879878.06,"En adelante",589561.59999999998,35]
[]
[null,"Tarifa para el pago provisional del mes de junio de 2025, aplicable a los ingresos que perciban los contribuyentes a que se refiere el Capítulo II, Sección I, del Título IV de la Ley del Impuesto sobre la Renta."]
[null,"Límite inferior","Límite superior","Cuota fija","Por ciento para aplicarse sobre"]
[null,null,null,null,"el excedente del límite inferior"]
[null,"$","$","$","%"]
[null,0.01,4476.24,0,1.92]
[null,4476.25,37992.300000000003,85.92,6.4]
[null,37992.31,66768.06,2230.98,10.88]
[null,66768.070000000007,77614.92,5361.78,16]
[null,77614.929999999993,92926.26,7097.28,17.920000000000002]
[null,92926.27,187418.94,9841.08,21.36]
[null,187418.95,295398,30024.720000000001,23.52]
[null,295398.01,563963.4,55421.34,30]
[null,563963.41,751951.2,135991.01999999999,32]
[null,751951.21,2255853.66,196147.08,34]
[null,2255853.67,"En adelante",707473.92000000004,35]
[]
[null,"Tarifa para el pago provisional del mes de julio de 2025, aplicable a los ingresos que perciban los contribuyentes a que se refiere el Capítulo II, Sección I, del Título IV de la Ley del Impuesto sobre la Renta."]
[null,"Límite inferior","Límite superior","Cuota fija","Por ciento para aplicarse sobre"]
[null,null,null,null,"el excedente del límite inferior"]
[null,"$","$","$","%"]
[null,0.01,5222.28,0,1.92]
[null,5222.29,44324.35,100.24,6.4]
[null,44324.36,77896.070000000007,2602.81,10.88]
[null,77896.08,90550.74,6255.41,16]
[null,90550.75,108413.97,8280.16,17.920000000000002]
[null,108413.98,218655.43,11481.26,21.36]
[null,218655.44,344631,35028.839999999997,23.52]
[null,344631.01,657957.30000000005,64658.23,30]
[null,657957.31000000006,877276.4,158656.19,32]
[null,877276.41,2631829.27,228838.26,34]
[null,2631829.2799999998,"En adelante",825386.24,35]
[]
[null,"Tarifa para el pago provisional del mes de agosto de 2025, aplicable a los ingresos que perciban los contribuyentes a que se refiere el Capítulo II, Sección I, del Título IV de la Ley del Impuesto sobre la Renta."]
[null,"Límite inferior","Límite superior","Cuota fija","Por ciento para aplicarse sobre"]
[null,null,null,null,"el excedente del límite inferior"]
[null,"$","$","$","%"]
[null,0.01,5968.32,0,1.92]
[null,5968.33,50656.4,114.56,6.4]
[null,50656.41,89024.08,2974.64,10.88]
[null,89024.09,103486.56,7149.04,16]
[null,103486.57,123901.68,9463.0400000000009,17.920000000000002]
[null,123901.69,249891.92,13121.44,21.36]
[null,249891.93,393864,40032.959999999999,23.52]
[null,393864.01,751951.2,73895.12,30]
[null,751951.21,1002601.6,181321.36,32]
[null,1002601.61,3007804.88,261529.44,34]
[null,3007804.89,"En adelante",943298.56000000006,35]
[]
[null,"Tarifa para el pago provisional del mes de septiembre de 2025, aplicable a los ingresos que perciban los contribuyentes a que se refiere el Capítulo II, Sección I, del Título IV de la Ley del Impuesto sobre la Renta."]
[null,"Límite inferior","Límite superior","Cuota fija","Por ciento para aplicarse sobre"]
[null,null,null,null,"el excedente del límite inferior"]
[null,"$","$","$","%"]
[null,0.01,6714.36,0,1.92]
[null,6714.37,56988.45,128.88,6.4]
[null,56988.46,100152.09,3346.47,10.88]
[null,100152.1,116422.38,8042.67,16]
[null,116422.39,139389.39000000001,10645.92,17.920000000000002]
[null,139389.4,281128.40999999997,14761.62,21.36]
[null,281128.42,443097,45037.08,23.52]
[null,443097.01,845945.1,83132.009999999995,30]
[null,845945.11,1127926.8,203986.53,32]
[null,1127926.81,3383780.49,294220.62,34]
[null,3383780.5,"En adelante",1061210.8799999999,35]
[]
[null,"Tarifa para el pago provisional del mes de octubre de 2025, aplicable a los ingresos que perciban los contribuyentes a que se refiere el Capítulo II, Sección I, del Título IV de la Ley del Impuesto sobre la Renta."]
[null,"Límite inferior","Límite superior","Cuota fija","Por ciento para aplicarse sobre"]
[null,null,null,null,"el excedente del límite inferior"]
[null,"$","$","$","%"]
[null,0.01,7460.4,0,1.92]
[null,7460.41,63320.5,143.19999999999999,6.4]
[null,63320.51,111280.1,3718.3,10.88]
[null,111280.11,129358.2,8936.2999999999993,16]
[null,129358.21,154877.1,11828.8,17.920000000000002]
[null,154877.10999999999,312364.90000000002,16401.8,21.36]
[null,312364.90999999997,492330,50041.2,23.52]
[null,492330.01,939939,92368.9,30]
[null,939939.01,1253252,226651.7,32]
[null,1253252.01,3759756.1,326911.8,34]
[null,3759756.11,"En adelante",1179123.2,35]
[]
[null,"Tarifa para el pago provisional del mes de noviembre de 2025, aplicable a los ingresos que perciban los contribuyentes a que se refiere el Capítulo II, Sección I, del Título IV de la Ley del Impuesto sobre la Renta."]
[null,"Límite inferior","Límite superior","Cuota fija","Por ciento para aplicarse sobre"]
[null,null,null,null,"el excedente del límite inferior"]
[null,"$","$","$","%"]
[null,0.01,8206.44,0,1.92]
[null,8206.4500000000007,69652.55,157.52000000000001,6.4]
[null,69652.56,122408.11,4090.13,10.88]
[null,122408.12,142294.01999999999,9829.93,16]
[null,142294.03,170364.81,13011.68,17.920000000000002]
[null,170364.82,343601.39,18041.98,21.36]
[null,343601.4,541563,55045.32,23.52]
[null,541563.01,1033932.9,101605.79,30]
[null,1033932.91,1378577.2,249316.87,32]
[null,1378577.21,4135731.71,359602.98,34]
[null,4135731.72,"En adelante",1297035.52,35]
[]
[null,"Tarifa para el pago provisional del mes de diciembre de 2025, aplicable a los ingresos que perciban los contribuyentes a que se refiere el Capítulo II, Sección I, del Título IV de la Ley del Impuesto sobre la Renta."]
[null,"Límite inferior","Límite superior","Cuota fija","Por ciento para aplicarse sobre"]
[null,null,null,null,"el excedente del límite inferior"]
[null,"$","$","$","%"]
[null,0.01,8952.49,0,1.92]
[null,8952.5,75984.55,171.88,6.4]
[null,75984.56,133536.07,4461.9399999999996,10.88]
[null,133536.07999999999,155229.79999999999,10723.55,16]
[null,155229.81,185852.57,14194.54,17.920000000000002]
[null,185852.58,374837.88,19682.13,21.36]
[null,374837.89,590795.99,60049.4,23.52]
[null,590796,1127926.8400000001,110842.74,30]
[null,1127926.8500000001,1503902.46,271981.99,32]
[null,1503902.47,4511707.37,392294.17,34]
[null,4511707.38,"En adelante",1414947.85,35]
[]
[]
[]
[null,"2. Tarifa para el cálculo del impuesto correspondiente al ejercicio 2023."]
[null,"Límite inferior","Límite superior","Cuota fija","Por ciento para aplicarse sobre"]
[null,null,null,null,"el excedente del límite inferior"]
[null,"$","$","$","%"]
[null,0.01,8952.49,0,1.92]
[null,8952.5,75984.55,171.88,6.4]
[null,75984.56,133536.07,4461.9399999999996,10.88]
[null,133536.07999999999,155229.79999999999,10723.55,16]
[null,155229.81,185852.57,14194.54,17.920000000000002]
[null,185852.58,374837.88,19682.13,21.36]
[null,374837.89,590795.99,60049.4,23.52]
[null,590796,1127926.8400000001,110842.74,30]
[null,1127926.8500000001,1503902.46,271981.99,32]
[null,1503902.47,4511707.37,392294.17,34]
[null,4511707.38,"En adelante",1414947.85,35]

{"sheet":"CATALOGO","index":10,"n_rows":229,"n_cols":11,"rows_kept":229,"cut":false,"hidden":true,"merged":[]}
[]
[]
[]
[null,"c_RiesgoPuesto","Descripción","Fecha inicio de vigencia","Fecha fin de vigencia",null,null,"c_TipoPercepcion","Descripción","Fecha inicio de vigencia","Fecha fin de vigencia"]
[null,1,"Clase I","2017-01-01",null,null,null,1,"Sueldos, Salarios  Rayas y Jornales","2016-11-01"]
[null,2,"Clase II","2017-01-01",null,null,null,2,"Gratificación Anual (Aguinaldo)","2016-11-01"]
[null,3,"Clase III","2017-01-01",null,null,null,3,"Participación de los Trabajadores en las Utilidades PTU","2016-11-01"]
[null,4,"Clase IV","2017-01-01",null,null,null,4,"Reembolso de Gastos Médicos Dentales y Hospitalarios","2016-11-01"]
[null,5,"Clase V","2017-01-01",null,null,null,5,"Fondo de Ahorro","2016-11-01"]
[null,99,"No aplica","2017-08-13",null,null,null,6,"Caja de ahorro","2016-11-01"]
[null,null,null,null,null,null,null,9,"Contribuciones a Cargo del Trabajador Pagadas por el Patrón","2016-11-01"]
[null,null,null,null,null,null,null,10,"Premios por puntualidad","2016-11-01"]
[null,"c_TipoRegimen","Descripción","Fecha inicio de vigencia","Fecha fin de vigencia",null,null,11,"Prima de Seguro de vida","2016-11-01"]
[null,2,"Sueldos","2017-01-01",null,null,null,12,"Seguro de Gastos Médicos Mayores","2016-11-01"]
[null,3,"Jubilados","2017-01-01",null,null,null,13,"Cuotas Sindicales Pagadas por el Patrón","2016-11-01"]
[null,4,"Pensionados","2017-01-01",null,null,null,14,"Subsidios por incapacidad","2016-11-01"]
[null,5,"Asimilados Miembros Sociedades Cooperativas Produccion","2017-01-01",null,null,null,15,"Becas para trabajadores y/o hijos","2016-11-01"]
[null,6,"Asimilados Integrantes Sociedades Asociaciones Civiles","2017-01-01",null,null,null,19,"Horas extra","2016-11-01"]
[null,7,"Asimilados Miembros consejos","2017-01-01",null,null,null,20,"Prima dominical","2016-11-01"]
[null,8,"Asimilados comisionistas","2017-01-01",null,null,null,21,"Prima vacacional","2016-11-01"]
[null,9,"Asimilados Honorarios","2017-01-01",null,null,null,22,"Prima por antigüedad","2016-11-01"]
[null,10,"Asimilados acciones","2017-01-01",null,null,null,23,"Pagos por separación","2016-11-01"]
[null,11,"Asimilados otros","2017-01-01",null,null,null,24,"Seguro de retiro","2016-11-01"]
[null,12,"Jubilados o Pensionados","2017-03-27",null,null,null,25,"Indemnizaciones","2016-11-01"]
[null,13,"Indemnización o Separación","2018-10-15",null,null,null,26,"Reembolso por funeral","2016-11-01"]
[null,99,"Otro Regimen","2017-01-01",null,null,null,27,"Cuotas de seguridad social pagadas por el patrón","2016-11-01"]
[null,null,null,null,null,null,null,28,"Comisiones","2016-11-01"]
[null,null,null,null,null,null,null,29,"Vales de despensa","2016-11-01"]
[null,"c_TipoContrato","Descripción",null,null,null,null,30,"Vales de restaurante","2016-11-01"]
[null,1,"Contrato de trabajo por tiempo indeterminado",null,null,null,null,31,"Vales de gasolina","2016-11-01"]
[null,2,"Contrato de trabajo para obra determinada",null,null,null,null,32,"Vales de ropa","2016-11-01"]
[null,3,"Contrato de trabajo por tiempo determinado",null,null,null,null,33,"Ayuda para renta","2016-11-01"]
[null,4,"Contrato de trabajo por temporada",null,null,null,null,34,"Ayuda para artículos escolares","2016-11-01"]
[null,5,"Contrato de trabajo sujeto a prueba",null,null,null,null,35,"Ayuda para anteojos","2016-11-01"]
[null,6,"Contrato de trabajo con capacitación inicial",null,null,null,null,36,"Ayuda para transporte","2016-11-01"]
[null,7,"Modalidad de contratación por pago de hora laborada",null,null,null,null,37,"Ayuda para gastos de funeral","2016-11-01"]
[null,8,"Modalidad de trabajo por comisión laboral",null,null,null,null,38,"Otros ingresos por salarios","2016-11-01"]
[null,9,"Modalidades de contratación donde no existe relación de trabajo",null,null,null,null,39,"Jubilaciones, pensiones o haberes de retiro","2016-11-01"]
[null,10,"Jubilación, pensión, retiro.",null,null,null,null,44,"Jubilaciones, pensiones o haberes de retiro en parcialidades","2016-11-01"]
[null,99,"Otro contrato",null,null,null,null,45,"Ingresos en acciones o títulos valor que representan bienes","2016-11-01"]
[null,null,null,null,null,null,null," 046","Ingresos asimilados a salarios","2016-11-01"]
[null,null,null,null,null,null,null," 047","Alimentación","2016-11-01"]
[null,"c_PeriodicidadPago","Descripción","Fecha inicio de vigencia","Fecha fin de vigencia",null,null,48,"Habitación","2016-11-01"]
[null,1,"Diario","2016-11-01",null,null,null,49,"Premios por asistencia","2016-11-01"]
[null,2,"Semanal","2016-11-01",null,null,null,50,"Viáticos","2017-01-06"]
[null,3,"Catorcenal","2016-11-01",null,null,null,51,"Pagos por gratificaciones, primas, compensaciones, recompensas u otros a extrabajadores derivados de jubilación en parcialidades","2018-10-15"]
[null,4,"Quincenal","2016-11-01",null,null,null,52,"Pagos que se realicen a extrabajadores que obtengan una jubilación en parcialidades derivados de la ejecución de resoluciones judicial o de un laudo","2018-10-15"]
[null,5,"Mensual","2016-11-01",null,null,null,53,"Pagos que se realicen a extrabajadores que obtengan una jubilación en una sola exhibición derivados de la ejecución de resoluciones judicial o de un laudo","2018-10-15"]
[null,6,"Bimestral","2016-11-01"]
[null,7,"Unidad obra","2016-11-01"]
[null,8,"Comisión","2016-11-01",null,null,null," c_TipoOtroPago","Descripción","Fecha inicio de vigencia","Fecha fin de vigencia"]
[null,9,"Precio alzado","2016-11-01",null,null,null,1,"Reintegro de ISR pagado en exceso (siempre que no haya sido enterado al SAT).","2017-01-01"]
[null,10,"Decenal","2017-01-19",null,null,null,2,"Subsidio para el empleo (efectivamente entregado al trabajador).","2017-01-01"]
[null,99,"Otra Periodicidad","2016-11-01",null,null,null,3,"Viáticos (entregados al trabajador).","2017-01-01"]
[null,null,null,null,null,null,null,4,"Aplicación de saldo a favor por compensación anual.","2017-01-01"]
[null,null,null,null,null,null,null,5,"Reintegro de ISR retenido en exceso de ejercicio anterior (siempre que no haya sido enterado al SAT).","2017-12-05"]
[null,"c_TipoIncapacidad","Descripción",null,null,null,null,999,"Pagos distintos a los listados y que no deben considerarse como ingreso por sueldos, salarios o ingresos asimilados.","2017-01-01"]
[null,1,"Riesgo de trabajo."]
[null,2,"Enfermedad en general."]
[null,3,"Maternidad.",null,null,null,null,"c_TipoDeduccion","Descripción","Fecha inicio de vigencia","Fecha fin de vigencia"]
[null,null,null,null,null,null,null,1,"Seguridad social","2016-11-01"]
[null,null,null,null,null,null,null,2,"ISR","2016-11-01"]
[null,"c_TipoJornada","Descripción",null,null,null,null,3,"Aportaciones a retiro, cesantía en edad avanzada y vejez.","2016-11-01"]
[null,1,"Diurna",null,null,null,null,4,"Otros","2016-11-01"]
[null,2,"Nocturna",null,null,null,null,5,"Aportaciones a Fondo de vivienda","2016-11-01"]
[null,3,"Mixta",null,null,null,null,6,"Descuento por incapacidad","2016-11-01"]
[null,4,"Por hora",null,null,null,null,7,"Pensión alimenticia","2016-11-01"]
[null,5,"Reducida",null,null,null,null,8,"Renta","2016-11-01"]
[null,6,"Continuada",null,null,null,null,9,"Préstamos provenientes del Fondo Nacional de la Vivienda para los Trabajadores","2016-11-01"]
[null,7,"Partida",null,null,null,null,10,"Pago por crédito de vivienda","2016-11-01"]
[null,8,"Por turnos",null,null,null,null,11,"Pago de abonos INFONACOT","2016-11-01"]
[null,99,"Otra Jornada",null,null,null,null,12,"Anticipo de salarios","2016-11-01"]
[null,null,null,null,null,null,null,13,"Pagos hechos con exceso al trabajador","2016-11-01"]
[null,null,null,null,null,null,null,14,"Errores","2016-11-01"]
[null,"c_Estado","c_Pais","Nombre del estado",null,null,null,15,"Pérdidas","2016-11-01"]
[null,"AGU","MEX","Aguascalientes",null,null,null,16,"Averías","2016-11-01"]
[null,"BCN","MEX","Baja California",null,null,null,17,"Adquisición de artículos producidos por la empresa o establecimiento","2016-11-01"]
[null,"BCS","MEX","Baja California Sur",null,null,null,18,"Cuotas para la constitución y fomento de sociedades cooperativas y de cajas de ahorro","2016-11-01"]
[null,"CAM","MEX","Campeche",null,null,null,19,"Cuotas sindicales","2016-11-01"]
[null,"CHP","MEX","Chiapas",null,null,null,20,"Ausencia (Ausentismo)","2016-11-01"]
[null,"CHH","MEX","Chihuahua",null,null,null,21,"Cuotas obrero patronales","2016-11-01"]
[null,"COA","MEX","Coahuila",null,null,null,22,"Impuestos Locales","2016-11-01"]
[null,"COL","MEX","Colima",null,null,null,23,"Aportaciones voluntarias","2016-11-01"]
[null,"DIF","MEX","Ciudad de México",null,null,null,24,"Ajuste en Gratificación Anual (Aguinaldo) Exento","2017-01-06"]
[null,"DUR","MEX","Durango",null,null,null,25,"Ajuste en Gratificación Anual (Aguinaldo) Gravado","2017-01-06"]
[null,"GUA","MEX","Guanajuato",null,null,null,26,"Ajuste en Participación de los Trabajadores en las Utilidades PTU Exento","2017-01-06"]
[null,"GRO","MEX","Guerrero",null,null,null,27,"Ajuste en Participación de los Trabajadores en las Utilidades PTU Gravado","2017-01-06"]
[null,"HID","MEX","Hidalgo",null,null,null,28,"Ajuste en Reembolso de Gastos Médicos Dentales y Hospitalarios Exento","2017-01-06"]
[null,"JAL","MEX","Jalisco",null,null,null,29,"Ajuste en Fondo de ahorro Exento","2017-01-06"]
[null,"MEX","MEX","Estado de México",null,null,null,30,"Ajuste en Caja de ahorro Exento","2017-01-06"]
[null,"MIC","MEX","Michoacán",null,null,null,31,"Ajuste en Contribuciones a Cargo del Trabajador Pagadas por el Patrón Exento","2017-01-06"]
[null,"MOR","MEX","Morelos",null,null,null,32,"Ajuste en Premios por puntualidad Gravado","2017-01-06"]
[null,"NAY","MEX","Nayarit",null,null,null,33,"Ajuste en Prima de Seguro de vida Exento","2017-01-06"]
[null,"NLE","MEX","Nuevo León",null,null,null,34,"Ajuste en Seguro de Gastos Médicos Mayores Exento","2017-01-06"]
[null,"OAX","MEX","Oaxaca",null,null,null,35,"Ajuste en Cuotas Sindicales Pagadas por el Patrón Exento","2017-01-06"]
[null,"PUE","MEX","Puebla",null,null,null,36,"Ajuste en Subsidios por incapacidad Exento","2017-01-06"]
[null,"QUE","MEX","Querétaro",null,null,null,37,"Ajuste en Becas para trabajadores y/o hijos Exento","2017-01-06"]
[null,"ROO","MEX","Quintana Roo",null,null,null,38,"Ajuste en Horas extra Exento","2017-01-06"]
[null,"SLP","MEX","San Luis Potosí",null,null,null,39,"Ajuste en Horas extra Gravado","2017-01-06"]
[null,"SIN","MEX","Sinaloa",null,null,null,40,"Ajuste en Prima dominical Exento","2017-01-06"]
[null,"SON","MEX","Sonora",null,null,null,41,"Ajuste en Prima dominical Gravado","2017-01-06"]
[null,"TAB","MEX","Tabasco",null,null,null,42,"Ajuste en Prima vacacional Exento","2017-01-06"]
[null,"TAM","MEX","Tamaulipas",null,null,null,43,"Ajuste en Prima vacacional Gravado","2017-01-06"]
[null,"TLA","MEX","Tlaxcala",null,null,null,44,"Ajuste en Prima por antigüedad Exento","2017-01-06"]
[null,"VER","MEX","Veracruz",null,null,null,45,"Ajuste en Prima por antigüedad Gravado","2017-01-06"]
[null,"YUC","MEX","Yucatán",null,null,null,46,"Ajuste en Pagos por separación Exento","2017-01-06"]
[null,"ZAC","MEX","Zacatecas",null,null,null,47,"Ajuste en Pagos por separación Gravado","2017-01-06"]
[null,"AL","USA","Alabama",null,null,null,48,"Ajuste en Seguro de retiro Exento","2017-01-06"]
[null,"AK","USA","Alaska",null,null,null,49,"Ajuste en Indemnizaciones Exento","2017-01-06"]
[null,"AZ","USA","Arizona",null,null,null,50,"Ajuste en Indemnizaciones Gravado","2017-01-06"]
[null,"AR","USA","Arkansas",null,null,null,51,"Ajuste en Reembolso por funeral Exento","2017-01-06"]
[null,"CA","USA","California",null,null,null,52,"Ajuste en Cuotas de seguridad social pagadas por el patrón Exento","2017-01-06"]
[null,"NC","USA","Carolina del Norte",null,null,null,53,"Ajuste en Comisiones Gravado","2017-01-06"]
[null,"SC","USA","Carolina del Sur",null,null,null,54,"Ajuste en Vales de despensa Exento","2017-01-06"]
[null,"CO","USA","Colorado",null,null,null,55,"Ajuste en Vales de restaurante Exento","2017-01-06"]
[null,"CT","USA","Connecticut",null,null,null,56,"Ajuste en Vales de gasolina Exento","2017-01-06"]
[null,"ND","USA","Dakota del Norte",null,null,null,57,"Ajuste en Vales de ropa Exento","2017-01-06"]
[null,"SD","USA","Dakota del Sur",null,null,null,58,"Ajuste en Ayuda para renta Exento","2017-01-06"]
[null,"DE","USA","Delaware",null,null,null,59,"Ajuste en Ayuda para artículos escolares Exento","2017-01-06"]
[null,"FL","USA","Florida",null,null,null,60,"Ajuste en Ayuda para anteojos Exento","2017-01-06"]
[null,"GA","USA","Georgia",null,null,null,61,"Ajuste en Ayuda para transporte Exento","2017-01-06"]
[null,"HI","USA","Hawái",null,null,null,62,"Ajuste en Ayuda para gastos de funeral Exento","2017-01-06"]
[null,"ID","USA","Idaho",null,null,null,63,"Ajuste en Otros ingresos por salarios Exento","2017-01-06"]
[null,"IL","USA","Illinois",null,null,null,64,"Ajuste en Otros ingresos por salarios Gravado","2017-01-06"]
[null,"IN","USA","Indiana",null,null,null,65,"Ajuste en Jubilaciones, pensiones o haberes de retiro en una sola exhibición Exento ","2018-10-15"]
[null,"IA","USA","Iowa",null,null,null,66,"Ajuste en Jubilaciones, pensiones o haberes de retiro en una sola exhibición Gravado","2018-10-15"]
[null,"KS","USA","Kansas",null,null,null,67,"Ajuste en Pagos por separación Acumulable","2017-01-06"]
[null,"KY","USA","Kentucky",null,null,null,68,"Ajuste en Pagos por separación No acumulable","2017-01-06"]
[null,"LA","USA","Luisiana",null,null,null,69,"Ajuste en Jubilaciones, pensiones o haberes de retiro en parcialidades Exento","2018-10-15"]
[null,"ME","USA","Maine",null,null,null,70,"Ajuste en Jubilaciones, pensiones o haberes de retiro en parcialidades Gravado","2018-10-15"]
[null,"MD","USA","Maryland",null,null,null,71,"Ajuste en Subsidio para el empleo (efectivamente entregado al trabajador)","2017-01-06"]
[null,"MA","USA","Massachusetts",null,null,null,72,"Ajuste en Ingresos en acciones o títulos valor que representan bienes Exento","2017-01-06","2018-10-14"]
[null,"MI","USA","Míchigan",null,null,null,73,"Ajuste en Ingresos en acciones o títulos valor que representan bienes Gravado","2017-01-06"]
[null,"MN","USA","Minnesota",null,null,null,74,"Ajuste en Alimentación Exento","2017-01-06"]
[null,"MS","USA","Misisipi",null,null,null,75,"Ajuste en Alimentación Gravado","2017-01-06"]
[null,"MO","USA","Misuri",null,null,null,76,"Ajuste en Habitación Exento","2017-01-06"]
[null,"MT","USA","Montana",null,null,null,77,"Ajuste en Habitación Gravado","2017-01-06"]
[null,"NE","USA","Nebraska",null,null,null,78,"Ajuste en Premios por asistencia","2017-01-06"]
[null,"NV","USA","Nevada",null,null,null,79,"Ajuste en Pagos distintos a los listados y que no deben considerarse como ingreso por sueldos, salarios o ingresos asimilados.","2017-01-06"]
[null,"NJ","USA","Nueva Jersey",null,null,null,80,"Ajuste en Viáticos gravados","2017-01-06"]
[null,"NY","USA","Nueva York",null,null,null,81,"Ajuste en Viáticos (entregados al trabajador)","2017-01-06"]
[null,"NH","USA","Nuevo Hampshire",null,null,null,"082","Ajuste en Fondo de ahorro Gravado","2017-01-06"]
[null,"NM","USA","Nuevo México",null,null,null,"083","Ajuste en Caja de ahorro Gravado","2017-01-06"]
[null,"OH","USA","Ohio",null,null,null,"084","Ajuste en Prima de Seguro de vida Gravado","2017-01-06"]
[null,"OK","USA","Oklahoma",null,null,null,"085","Ajuste en Seguro de Gastos Médicos Mayores Gravado","2017-01-06"]
[null,"OR","USA","Oregón",null,null,null,"086","Ajuste en Subsidios por incapacidad Gravado","2017-01-06"]
[null,"PA","USA","Pensilvania",null,null,null,"087","Ajuste en Becas para trabajadores y/o hijos Gravado","2017-01-06"]
[null,"RI","USA","Rhode Island",null,null,null,"088","Ajuste en Seguro de retiro Gravado","2017-01-06"]
[null,"TN","USA","Tennessee",null,null,null,"089","Ajuste en Vales de despensa Gravado","2017-01-06"]
[null,"TX","USA","Texas",null,null,null,"090","Ajuste en Vales de restaurante Gravado","2017-01-06"]
[null,"UT","USA","Utah",null,null,null,"091","Ajuste en Vales de gasolina Gravado","2017-01-06"]
[null,"VT","USA","Vermont",null,null,null,"092","Ajuste en Vales de ropa Gravado","2017-01-06"]
[null,"VA","USA","Virginia",null,null,null,"093","Ajuste en Ayuda para renta Gravado","2017-01-06"]
[null,"WV","USA","Virginia Occidental",null,null,null,"094","Ajuste en Ayuda para artículos escolares Gravado","2017-01-06"]
[null,"WA","USA","Washington",null,null,null,"095","Ajuste en Ayuda para anteojos Gravado","2017-01-06"]
[null,"WI","USA","Wisconsin",null,null,null,"096","Ajuste en Ayuda para transporte Gravado","2017-01-06"]
[null,"WY","USA","Wyoming",null,null,null,"097","Ajuste en Ayuda para gastos de funeral Gravado","2017-01-06"]
[null,"ON","CAN","Ontario ",null,null,null,"098","Ajuste a ingresos asimilados a salarios gravados","2017-01-06"]
[null,"QC","CAN"," Quebec ",null,null,null,"099","Ajuste a ingresos por sueldos y salarios gravados","2017-01-06"]
[null,"NS","CAN"," Nueva Escocia",null,null,null,100,"Ajuste en Viáticos exentos","2017-01-06"]
[null,"NB","CAN","Nuevo Brunswick ",null,null,null,101,"ISR Retenido de ejercicio anterior","2017-12-05"]
[null,"MB","CAN"," Manitoba",null,null,null,102,"Ajuste a pagos por gratificaciones, primas, compensaciones, recompensas u otros a extrabajadores derivados de jubilación en parcialidades, gravados","2018-10-15"]
[null,"BC","CAN"," Columbia Británica",null,null,null,103,"Ajuste a pagos que se realicen a extrabajadores que obtengan una jubilación en parcialidades derivados de la ejecución de una resolución judicial o de un laudo gravados","2018-10-15"]
[null,"PE","CAN"," Isla del Príncipe Eduardo",null,null,null,104,"Ajuste a pagos que se realicen a extrabajadores que obtengan una jubilación en parcialidades derivados de la ejecución de una resolución judicial o de un laudo exentos","2018-10-15"]
[null,"SK","CAN"," Saskatchewan",null,null,null,105,"Ajuste a pagos que se realicen a extrabajadores que obtengan una jubilación en una sola exhibición derivados de la ejecución de una resolución judicial o de un laudo gravados","2018-10-15"]
[null,"AB","CAN"," Alberta",null,null,null,106,"Ajuste a pagos que se realicen a extrabajadores que obtengan una jubilación en una sola exhibición derivados de la ejecución de una resolución judicial o de un laudo exentos","2018-10-15"]
[null,"NL","CAN"," Terranova y Labrador"]
[null,"NT","CAN"," Territorios del Noroeste"]
[null,"YT","CAN"," Yukón"]
[null,"UN","CAN"," Nunavut"]
[]
[]
[]
[]
[]
[]
[]
[]
[]
[]
[]
[]
[]
[]
[null,"c_TipoPercepcion","Descripción","Gravado","Exento","Régimen","Régimen consula","c_TipoRegimen","Descripción"]
[null,1,"Sueldos, Salarios  Rayas y Jornales","a","r",2,{"$f":"F186-B186","v":1},2,"Sueldos (Incluye ingresos señalados en la fracción I del artículo 94 de LISR)",2]
[null,2,"Gratificación Anual (Aguinaldo)","a","a",2,{"$f":"F187-B187","v":0},3,"Jubilados",3412]
[null,3,"Participación de los Trabajadores en las Utilidades PTU","a","a",2,-1,4,"Pensionados",3412]
[null,4,"Reembolso de Gastos Médicos Dentales y Hospitalarios","a","a",2,-2,5,"Asimilados Miembros Sociedades Cooperativas Produccion",567891011]
[null,5,"Fondo de Ahorro","a","a",2,-3,6,"Asimilados Integrantes Sociedades Asociaciones Civiles",567891011]
[null,6,"Caja de ahorro","a","a",2,-4,7,"Asimilados Miembros consejos",567891011]
[null,9,"Contribuciones a Cargo del Trabajador Pagadas por el Patrón","a","r",2,-7,8,"Asimilados comisionistas",567891011]
[null,10,"Premios por puntualidad","a","r",2,-8,9,"Asimilados Honorarios",567891011]
[null,11,"Prima de Seguro de vida","a","a",2,-9,10,"Asimilados acciones",567891011]
[null,12,"Seguro de Gastos Médicos Mayores","a","a",2,-10,11,"Asimilados otros",567891011]
[null,13,"Cuotas Sindicales Pagadas por el Patrón","a","a",2,-11,12,"Jubilados o Pensionados",3412]
[null,14,"Subsidios por incapacidad","a","a",2,-12,13,"Indemnización o Separación",13]
[null,15,"Becas para trabajadores y/o hijos","a","a",2,-13,99,"Otro Regimen",99]
[null,19,"Horas extra","a","a",2,-17]
[null,20,"Prima dominical","a","a",2,-18]
[null,21,"Prima vacacional","a","a",2,-19]
[null,24,"Seguro de retiro","a","a",2,-22]
[null,26,"Reembolso por funeral","a","a",2,-24]
[null,27,"Cuotas de seguridad social pagadas por el patrón","r","a",2,-25]
[null,28,"Comisiones","a","r",2,-26]
[null,29,"Vales de despensa","a","a",2,-27]
[null,30,"Vales de restaurante","a","a",2,-28]
[null,31,"Vales de gasolina","a","a",2,-29]
[null,32,"Vales de ropa","a","a",2,-30]
[null,33,"Ayuda para renta","a","a",2,-31]
[null,34,"Ayuda para artículos escolares","a","a",2,-32]
[null,35,"Ayuda para anteojos","a","a",2,-33]
[null,36,"Ayuda para transporte","a","a",2,-34]
[null,37,"Ayuda para gastos de funeral","a","a",2,-35]
[null,38,"Otros ingresos por salarios","a","a",2,-36]
[null,47,"Alimentación diferentes a los establecidos en el Art 94 último párrafo LISR","a","a",2,-45]
[null,48,"Habitación","a","a",2,-46]
[null,49,"Premios por asistencia","a","r",2,-47]
[null,50,"Viáticos","a","a",2,-48]
[null,39,"Jubilaciones, pensiones o haberes de retiro","a","a",3412,3373]
[null,44,"Jubilaciones, pensiones o haberes de retiro en parcialidades","a","a",3412,3368]
[null,51,"Pagos por gratificaciones, primas, compensaciones, recompensas u otros a extrabajadores derivados de jubilación en parcialidades","a","r",3412,3361]
[null,52,"Pagos que se realicen a extrabajadores que obtengan una jubilación en parcialidades derivados de la ejecución de resoluciones judicial o de un laudo","a","a",3412,3360]
[null,53,"Pagos que se realicen a extrabajadores que obtengan una jubilación en una sola exhibición derivados de la ejecución de resoluciones judicial o de un laudo","a","a",3412,3359]
[null,22,"Prima por antigüedad","a","a",13,-9]
[null,23,"Pagos por separación","a","a",13,-10]
[null,25,"Indemnizaciones","a","a",13,-12]
[null,45,"Ingresos en acciones o títulos valor que representan bienes","a","r",567891011,567890966]
[null,46,"Ingresos asimilados a salarios","a","r",567891011,567890965]

{"sheet":"GENERALES (2)","index":11,"n_rows":23,"n_cols":7,"rows_kept":23,"cut":false,"hidden":true,"merged":[[3,1,3,3]]}
[]
[]
[]
[null,"Tabla de vacaciones"]
[null,"Mímino","Máximo","Días",null,"Área geográfica","Salario mímino"]
[null,0,1,12,null,"Zona Libre de la Frontera Norte",374.89]
[null,{"$f":"C6+0.01","v":1.01},{"$f":"C6+1","v":2},{"$f":"D6+2","v":14},null,"Resto del país",248.93]
[null,{"$f":"C7+0.01","v":2.0099999999999998},{"$f":"C7+1","v":3},{"$f":"D7+2","v":16}]
[null,3.01,4,18]
[null,4.01,5,20,null,"Valor de la UMA","Importe"]
[null,5.01,{"$f":"C10+5","v":10},22,null,"Enero",103.74]
[null,10.01,{"$f":"C11+5","v":15},24,null,"Febrero a diciembre",108.57]
[null,15.01,20,26]
[null,20.010000000000002,25,28]
[null,25.01,30,30]
[null,30.01,35,32]
[null,35.01,40,34]
[null,40.01,45,36]
[null,45.01,50,38]
[null,50.01,55,40]
[null,55.01,60,42]
[null,60.01,65,44]
[null,65.010000000000005,70,46]

{"sheet":"AJUSTE SUELDOS","index":12,"n_rows":10,"n_cols":28,"rows_kept":10,"cut":false,"hidden":true,"merged":[[6,26,6,27],[5,4,5,6],[5,7,5,11],[6,5,6,6],[6,13,6,18],[6,19,6,21],[6,23,6,25]]}
[]
[null,"Determinación del ajuste de sueldos y salarios 2025"]
[]
[]
[null,null,"Fecha inicial del ajuste"]
[null,null,"Fecha final del ajuste",null,{"$f":"IF(D6<>\"\",\"La tarifa que se considera es \"&TEXT(D6,\"mmmm\") & \" año \"&YEAR(D6),\"\")","v":""},null,null,"(-) Deducciones"]
[null,null,null,null,null,"Percepciones régimen sueldos y asimilados",null,6,12,13,20,null,null,"Aplicación de la tarifa del artículo 152 LISR (actualizada anexo 8 RMF 2025)",null,null,null,null,null,"(-) Subsidio al empleo causado",null,null,"(=)","(-) Retenciones de ISR",null,null,"(=) Diferencia"]
[null,"No. empleado","Empleado","RFC","¿Se relaliza el cálculo anual?","Gravado","Exento","Descuento por incapacidad","Anticipo de salarios","Pagos hechos con exceso al trabajador.","Ausencia (Ausentismo)","Ajustes a percepciones gravadas","Base de ISR","(-) Límite inferior","(=) Excedente del límite inferior","(x) % del excedente del límite inferior","(=) Impuesto marginal","(+) Cuota fija","(=) ISR causado","Subsidio al empleo causado","(-) Ajuste al subsidio al empleo causado (clave 107 deducciones)","(=) Subsidio al empleo cauaso a aplicar","ISR a cargo","∑ de la clave 002 (ISR) de deducciones","(-) ∑ de la clave 01 (reintegro de ISR) del nodo de otros pagos","(=) ISR retenido del ejercicio","A cargo","A favor"]
[null,null,null,null,null,null,null,null,null,null,null,null,{"$f":"IFERROR(IF((F9-SUM(H9:L9))>0,F9-SUM(H9:L9),\"\"),\"\")","v":""},{"$f":"IFERROR(IF(E9=\"Si\",VLOOKUP(M9,INDIRECT(\"T\"&TEXT($D$6,\"MMMM\")),1),\"\"),\"\")","v":""},{"$f":"IFERROR(M9-N9,\"\")","v":""},{"$f":"IFERROR(IF(E9=\"Si\",VLOOKUP(M9,INDIRECT(\"T\"&TEXT($D$6,\"MMMM\")),4),\"\"),\"\")","v":""},{"$f":"IFERROR(ROUND(O9*P9%,2),\"\")","v":""},{"$f":"IFERROR(IF(E9=\"Si\",VLOOKUP(M9,INDIRECT(\"T\"&TEXT($D$6,\"MMMM\")),3),\"\"),\"\")","v":""},{"$f":"IFERROR(Q9+R9,\"\")","v":""},null,null,null,{"$f":"IFERROR(IF(S9>=V9,S9-V9,0),\"\")","v":""},null,null,{"$f":"IFERROR(IF(X9<>\"\",X9-Y9,\"\"),\"\")","v":""},{"$f":"IFERROR(IF(W9>=Z9,W9-Z9,\"\"),\"\")","v":""},{"$f":"IFERROR(IF(Z9>W9,Z9-W9,\"\"),\"\")","v":""}]
[{"$f":"IFERROR(IF(#REF!<>\"\",#REF!-#REF!,\"\"),\"\")","v":""}]

{"sheet":"RECIBO","index":13,"n_rows":135,"n_cols":37,"rows_kept":135,"cut":false,"hidden":true,"merged":[[2,7,2,18],[19,8,19,13],[19,19,19,39],[15,28,15,30],[15,37,15,39],[15,8,15,10],[15,18,15,20],[7,28,7,39],[10,7,10,9],[10,14,10,39],[12,38,12,39],[7,6,7,19],[134,13,134,20],[5,2,5,5],[5,7,5,16],[131,2,131,3],[131,13,131,16],[131,17,131,20],[131,21,131,39],[132,13,132,20],[132,27,132,35],[132,36,132,39],[121,36,121,39],[122,2,122,3],[122,4,122,12],[122,13,122,16],[122,17,122,20],[122,21,122,22],[122,23,122,35],[122,36,122,39],[121,2,121,3],[121,4,121,12],[17,35,17,39],[17,27,17,29],[17,17,17,19],[17,6,17,8],[121,13,121,16],[121,17,121,20],[121,21,121,22],[121,23,121,35],[120,2,120,3],[120,4,120,12],[120,13,120,16],[120,17,120,20],[120,21,120,22],[120,23,120,35],[120,36,120,39],[119,2,119,3],[119,4,119,12],[118,23,118,35],[118,36,118,39],[117,2,117,3],[117,4,117,12],[117,13,117,16],[117,17,117,20],[117,21,117,22],[117,23,117,35],[119,13,119,16],[119,17,119,20],[119,21,119,22],[119,23,119,35],[117,36,117,39],[118,2,118,3],[118,4,118,12],[118,13,118,16],[118,17,118,20],[118,21,118,22],[119,36,119,39],[116,2,116,3],[116,4,116,12],[116,13,116,16],[116,17,116,20],[116,21,116,22],[116,23,116,35],[116,36,116,39],[115,2,115,3],[115,4,115,12],[114,23,114,35],[114,36,114,39],[113,2,113,3],[113,4,113,12],[113,13,113,16],[113,17,113,20],[113,21,113,22],[113,23,113,35],[115,13,115,16],[115,17,115,20],[115,21,115,22],[115,23,115,35],[113,36,113,39],[114,2,114,3],[114,4,114,12],[114,13,114,16],[114,17,114,20],[114,21,114,22],[115,36,115,39],[112,2,112,3],[112,4,112,12],[112,13,112,16],[112,17,112,20],[112,21,112,22],[112,23,112,35],[112,36,112,39],[111,2,111,3],[111,4,111,12],[110,23,110,35],[110,36,110,39],[109,2,109,3],[109,4,109,12],[109,13,109,16],[109,17,109,20],[109,21,109,22],[109,23,109,35],[111,13,111,16],[111,17,111,20],[111,21,111,22],[111,23,111,35],[109,36,109,39],[110,2,110,3],[110,4,110,12],[110,13,110,16],[110,17,110,20],[110,21,110,22],[111,36,111,39],[108,2,108,3],[108,4,108,12],[108,13,108,16],[108,17,108,20],[108,21,108,22],[108,23,108,35],[108,36,108,39],[107,2,107,3],[107,4,107,12],[106,23,106,35],[106,36,106,39],[105,2,105,3],[105,4,105,12],[105,13,105,16],[105,17,105,20],[105,21,105,22],[105,23,105,35],[107,13,107,16],[107,17,107,20],[107,21,107,22],[107,23,107,35],[105,36,105,39],[106,2,106,3],[106,4,106,12],[106,13,106,16],[106,17,106,20],[106,21,106,22],[107,36,107,39],[104,2,104,3],[104,4,104,12],[104,13,104,16],[104,17,104,20],[104,21,104,22],[104,23,104,35],[104,36,104,39],[103,2,103,3],[103,4,103,12],[102,23,102,35],[102,36,102,39],[101,2,101,3],[101,4,101,12],[101,13,101,16],[101,17,101,20],[101,21,101,22],[101,23,101,35],[103,13,103,16],[103,17,103,20],[103,21,103,22],[103,23,103,35],[101,36,101,39],[102,2,102,3],[102,4,102,12],[102,13,102,16],[102,17,102,20],[102,21,102,22],[103,36,103,39],[100,2,100,3],[100,4,100,12],[100,13,100,16],[100,17,100,20],[100,21,100,22],[100,23,100,35],[100,36,100,39],[99,2,99,3],[99,4,99,12],[98,23,98,35],[98,36,98,39],[97,2,97,3],[97,4,97,12],[97,13,97,16],[97,17,97,20],[97,21,97,22],[97,23,97,35],[99,13,99,16],[99,17,99,20],[99,21,99,22],[99,23,99,35],[97,36,97,39],[98,2,98,3],[98,4,98,12],[98,13,98,16],[98,17,98,20],[98,21,98,22],[99,36,99,39],[96,2,96,3],[96,4,96,12],[96,13,96,16],[96,17,96,20],[96,21,96,22],[96,23,96,35],[96,36,96,39],[95,2,95,3],[95,4,95,12],[94,23,94,35],[94,36,94,39],[93,2,93,3],[93,4,93,12],[93,13,93,16],[93,17,93,20],[93,21,93,22],[93,23,93,35],[95,13,95,16],[95,17,95,20],[95,21,95,22],[95,23,95,35],[93,36,93,39],[94,2,94,3],[94,4,94,12],[94,13,94,16],[94,17,94,20],[94,21,94,22],[95,36,95,39],[92,2,92,3],[92,4,92,12],[92,13,92,16],[92,17,92,20],[92,21,92,22],[92,23,92,35],[92,36,92,39],[91,2,91,3],[91,4,91,12],[90,23,90,35],[90,36,90,39],[89,2,89,3],[89,4,89,12],[89,13,89,16],[89,17,89,20],[89,21,89,22],[89,23,89,35],[91,13,91,16],[91,17,91,20],[91,21,91,22],[91,23,91,35],[89,36,89,39],[90,2,90,3],[90,4,90,12],[90,13,90,16],[90,17,90,20],[90,21,90,22],[91,36,91,39],[88,2,88,3],[88,4,88,12],[88,13,88,16],[88,17,88,20],[88,21,88,22],[88,23,88,35],[88,36,88,39],[87,2,87,3],[87,4,87,12],[86,23,86,35],[86,36,86,39],[85,2,85,3],[85,4,85,12],[85,13,85,16],[85,17,85,20],[85,21,85,22],[85,23,85,35],[87,13,87,16],[87,17,87,20],[87,21,87,22],[87,23,87,35],[85,36,85,39],[86,2,86,3],[86,4,86,12],[86,13,86,16],[86,17,86,20],[86,21,86,22],[87,36,87,39],[84,2,84,3],[84,4,84,12],[84,13,84,16],[84,17,84,20],[84,21,84,22],[84,23,84,35],[84,36,84,39],[83,2,83,3],[83,4,83,12],[82,23,82,35],[82,36,82,39],[81,2,81,3],[81,4,81,12],[81,13,81,16],[81,17,81,20],[81,21,81,22],[81,23,81,35],[83,13,83,16],[83,17,83,20],[83,21,83,22],[83,23,83,35],[81,36,81,39],[82,2,82,3],[82,4,82,12],[82,13,82,16],[82,17,82,20],[82,21,82,22],[83,36,83,39],[80,2,80,3],[80,4,80,12],[80,13,80,16],[80,17,80,20],[80,21,80,22],[80,23,80,35],[80,36,80,39],[79,2,79,3],[79,4,79,12],[78,23,78,35],[78,36,78,39],[77,2,77,3],[77,4,77,12],[77,13,77,16],[77,17,77,20],[77,21,77,22],[77,23,77,35],[79,13,79,16],[79,17,79,20],[79,21,79,22],[79,23,79,35],[77,36,77,39],[78,2,78,3],[78,4,78,12],[78,13,78,16],[78,17,78,20],[78,21,78,22],[79,36,79,39],[75,4,75,16],[76,4,76,16],[73,36,73,39],[74,2,74,3],[74,17,74,20],[74,21,74,22],[74,23,74,35],[74,36,74,39],[73,2,73,3],[73,17,73,20],[75,36,75,39],[76,2,76,3],[76,17,76,20],[76,21,76,22],[76,23,76,35],[76,36,76,39],[75,2,75,3],[75,17,75,20],[75,21,75,22],[75,23,75,35],[73,21,73,22],[73,23,73,35],[73,4,73,16],[74,4,74,16],[71,36,71,39],[72,2,72,3],[72,17,72,20],[72,21,72,22],[72,23,72,35],[72,36,72,39],[69,17,69,20],[69,21,69,22],[69,23,69,35],[71,2,71,3],[71,17,71,20],[71,21,71,22],[71,23,71,35],[71,4,71,16],[72,4,72,16],[68,4,68,16],[65,36,65,39],[66,17,66,20],[66,21,66,22],[66,23,66,35],[66,36,66,39],[66,2,66,16],[69,4,69,16],[70,4,70,16],[67,36,67,39],[68,2,68,3],[68,17,68,20],[68,21,68,22],[68,23,68,35],[68,36,68,39],[67,2,67,3],[67,17,67,20],[69,36,69,39],[70,2,70,3],[70,17,70,20],[70,21,70,22],[70,23,70,35],[70,36,70,39],[69,2,69,3],[65,2,65,3],[65,4,65,12],[65,13,65,16],[65,17,65,20],[65,21,65,22],[65,23,65,35],[67,21,67,22],[67,23,67,35],[67,4,67,16],[64,2,64,3],[64,4,64,12],[64,13,64,16],[64,17,64,20],[64,21,64,22],[64,23,64,35],[64,36,64,39],[63,2,63,3],[63,4,63,12],[62,23,62,35],[62,36,62,39],[61,2,61,3],[61,4,61,12],[61,13,61,16],[61,17,61,20],[61,21,61,22],[61,23,61,35],[63,13,63,16],[63,17,63,20],[63,21,63,22],[63,23,63,35],[61,36,61,39],[62,2,62,3],[62,4,62,12],[62,13,62,16],[62,17,62,20],[62,21,62,22],[63,36,63,39],[60,2,60,3],[60,4,60,12],[60,13,60,16],[60,17,60,20],[60,21,60,22],[60,23,60,35],[60,36,60,39],[59,2,59,3],[59,4,59,12],[58,23,58,35],[58,36,58,39],[57,2,57,3],[57,4,57,12],[57,13,57,16],[57,17,57,20],[57,21,57,22],[57,23,57,35],[59,13,59,16],[59,17,59,20],[59,21,59,22],[59,23,59,35],[57,36,57,39],[58,2,58,3],[58,4,58,12],[58,13,58,16],[58,17,58,20],[58,21,58,22],[59,36,59,39],[56,2,56,3],[56,4,56,12],[56,13,56,16],[56,17,56,20],[56,21,56,22],[56,23,56,35],[56,36,56,39],[55,2,55,3],[55,4,55,12],[54,23,54,35],[54,36,54,39],[53,2,53,3],[53,4,53,12],[53,13,53,16],[53,17,53,20],[53,21,53,22],[53,23,53,35],[55,13,55,16],[55,17,55,20],[55,21,55,22],[55,23,55,35],[53,36,53,39],[54,2,54,3],[54,4,54,12],[54,13,54,16],[54,17,54,20],[54,21,54,22],[55,36,55,39],[52,2,52,3],[52,4,52,12],[52,13,52,16],[52,17,52,20],[52,21,52,22],[52,23,52,35],[52,36,52,39],[51,2,51,3],[51,4,51,12],[50,23,50,35],[50,36,50,39],[49,2,49,3],[49,4,49,12],[49,13,49,16],[49,17,49,20],[49,21,49,22],[49,23,49,35],[51,13,51,16],[51,17,51,20],[51,21,51,22],[51,23,51,35],[49,36,49,39],[50,2,50,3],[50,4,50,12],[50,13,50,16],[50,17,50,20],[50,21,50,22],[51,36,51,39],[48,2,48,3],[48,4,48,12],[48,13,48,16],[48,17,48,20],[48,21,48,22],[48,23,48,35],[48,36,48,39],[47,2,47,3],[47,4,47,12],[46,23,46,35],[46,36,46,39],[45,2,45,3],[45,4,45,12],[45,13,45,16],[45,17,45,20],[45,21,45,22],[45,23,45,35],[47,13,47,16],[47,17,47,20],[47,21,47,22],[47,23,47,35],[45,36,45,39],[46,2,46,3],[46,4,46,12],[46,13,46,16],[46,17,46,20],[46,21,46,22],[47,36,47,39],[44,2,44,3],[44,4,44,12],[44,13,44,16],[44,17,44,20],[44,21,44,22],[44,23,44,35],[44,36,44,39],[43,2,43,3],[43,4,43,12],[42,23,42,35],[42,36,42,39],[41,2,41,3],[41,4,41,12],[41,13,41,16],[41,17,41,20],[41,21,41,22],[41,23,41,35],[43,13,43,16],[43,17,43,20],[43,21,43,22],[43,23,43,35],[41,36,41,39],[42,2,42,3],[42,4,42,12],[42,13,42,16],[42,17,42,20],[42,21,42,22],[43,36,43,39],[40,2,40,3],[40,4,40,12],[40,13,40,16],[40,17,40,20],[40,21,40,22],[40,23,40,35],[40,36,40,39],[39,2,39,3],[39,4,39,12],[38,23,38,35],[38,36,38,39],[37,2,37,3],[37,4,37,12],[37,13,37,16],[37,17,37,20],[37,21,37,22],[37,23,37,35],[39,13,39,16],[39,17,39,20],[39,21,39,22],[39,23,39,35],[37,36,37,39],[38,2,38,3],[38,4,38,12],[38,13,38,16],[38,17,38,20],[38,21,38,22],[39,36,39,39],[36,2,36,3],[36,4,36,12],[36,13,36,16],[36,17,36,20],[36,21,36,22],[36,23,36,35],[36,36,36,39],[35,2,35,3],[35,4,35,12],[34,23,34,35],[34,36,34,39],[33,2,33,3],[33,4,33,12],[33,13,33,16],[33,17,33,20],[33,21,33,22],[33,23,33,35],[35,13,35,16],[35,17,35,20],[35,21,35,22],[35,23,35,35],[33,36,33,39],[34,2,34,3],[34,4,34,12],[34,13,34,16],[34,17,34,20],[34,21,34,22],[35,36,35,39],[32,2,32,3],[32,4,32,12],[32,13,32,16],[32,17,32,20],[32,21,32,22],[32,23,32,35],[32,36,32,39],[31,2,31,3],[31,4,31,12],[30,23,30,35],[30,36,30,39],[29,2,29,3],[29,4,29,12],[29,13,29,16],[29,17,29,20],[29,21,29,22],[29,23,29,35],[31,13,31,16],[31,17,31,20],[31,21,31,22],[31,23,31,35],[29,36,29,39],[30,2,30,3],[30,4,30,12],[30,13,30,16],[30,17,30,20],[30,21,30,22],[31,36,31,39],[28,2,28,3],[28,4,28,12],[28,13,28,16],[28,17,28,20],[28,21,28,22],[28,23,28,35],[28,36,28,39],[27,2,27,3],[27,4,27,12],[26,2,26,3],[26,4,26,12],[26,13,26,16],[26,17,26,20],[26,21,26,22],[26,23,26,35],[26,36,26,39],[25,2,25,3],[27,13,27,16],[27,17,27,20],[27,21,27,22],[27,23,27,35],[27,36,27,39],[23,17,23,20],[23,21,23,22],[12,4,12,9],[12,19,12,26],[23,23,23,35],[23,36,23,39],[25,4,25,12],[25,13,25,16],[25,17,25,20],[25,21,25,22],[25,23,25,35],[22,2,22,20],[22,21,22,39],[23,2,23,3],[23,4,23,12],[23,13,23,16],[24,36,24,39],[25,36,25,39],[24,2,24,3],[24,4,24,12],[24,13,24,16],[24,17,24,20],[24,21,24,22],[24,23,24,35],[123,21,123,22],[124,21,124,22],[125,21,125,22],[126,21,126,22],[127,21,127,22],[128,21,128,22],[129,21,129,22],[130,21,130,22],[123,36,123,39],[124,36,124,39],[125,36,125,39],[126,36,126,39],[127,36,127,39],[128,36,128,39],[129,23,129,35],[130,23,130,35],[123,23,123,35],[124,23,124,35],[125,23,125,35],[126,23,126,35],[127,23,127,35],[128,23,128,35],[129,36,129,39],[130,36,130,39]]}
[]
[]
[null,"Folio fiscal de consulta:"]
[]
[]
[null,null,"Fecha emisión:"]
[]
[null,null,"EMISOR:",null,null,null,null,null,null,null,null,null,null,null,null,null,null,null,null,null,null,null,null,"Registro patronal"]
[]
[]
[null,null,"No. de trabajador",null,null,null,null,null,null,null,null,"Trabajador"]
[]
[null,null,"RFC",null,null,null,null,null,null,null,null,null,null,null,null,null,null,"CURP",null,null,null,null,null,null,null,null,null,null,null,null,null,null,"No. de días pagados"]
[]
[]
[null,null,"Inicio relación laboral",null,null,null,null,null,null,null,null,null,"Fecha inicial de pago",null,null,null,null,null,null,null,null,null,null,"Fecha final de pago",null,null,null,null,null,null,null,null,null,"Fecha de pago"]
[]
[null,null,"Antigüedad",null,null,null,null,null,null,null,null,"Salario diario integrado",null,null,null,null,null,null,null,null,null,"Salario base de cotización",null,null,null,null,null,null,null,null,null,"Tipo de jornada"]
[]
[null,null,"Peridodicidad de pago",null,null,null,null,null,null,null,null,null,null,null,null,"Tipo de contrato"]
[]
[]
[null,null,"Percepciones:",null,null,null,null,null,null,null,null,null,null,null,null,null,null,null,null,null,null,"Deducciones:"]
[null,null,"Clave",null,"Concepto",null,null,null,null,null,null,null,null,"Importe Gravado",null,null,null,"Importe Exento",null,null,null,"Clave",null,"Concepto",null,null,null,null,null,null,null,null,null,null,null,null,"Importe"]
[null,null,1,null,"Sueldos, Salarios  Rayas y Jornales",null,null,null,null,null,null,null,null,null,null,null,null,null,null,null,null,1,null,"Seguridad social"]
[null,null,2,null,"Gratificación Anual (Aguinaldo)",null,null,null,null,null,null,null,null,null,null,null,null,null,null,null,null,2,null,"ISR"]
[null,null,3,null,"Participación de los Trabajadores en las Utilidades PTU",null,null,null,null,null,null,null,null,null,null,null,null,null,null,null,null,3,null,"Aportaciones a retiro, cesantía en edad avanzada y vejez."]
[null,null,4,null,"Reembolso de Gastos Médicos Dentales y Hospitalarios",null,null,null,null,null,null,null,null,null,null,null,null,null,null,null,null,4,null,"Otros"]
[null,null,5,null,"Fondo de Ahorro",null,null,null,null,null,null,null,null,null,null,null,null,null,null,null,null,5,null,"Aportaciones a Fondo de vivienda"]
[null,null,6,null,"Caja de ahorro",null,null,null,null,null,null,null,null,null,null,null,null,null,null,null,null,6,null,"Descuento por incapacidad"]
[null,null,9,null,"Contribuciones a Cargo del Trabajador Pagadas por el Patrón",null,null,null,null,null,null,null,null,null,null,null,null,null,null,null,null,7,null,"Pensión alimenticia"]
[null,null,10,null,"Premios por puntualidad",null,null,null,null,null,null,null,null,null,null,null,null,null,null,null,null,8,null,"Renta"]
[null,null,11,null,"Prima de Seguro de vida",null,null,null,null,null,null,null,null,null,null,null,null,null,null,null,null,9,null,"Préstamos provenientes del Fondo Nacional de la Vivienda para los Trabajadores"]
[null,null,12,null,"Seguro de Gastos Médicos Mayores",null,null,null,null,null,null,null,null,null,null,null,null,null,null,null,null,10,null,"Pago por crédito de vivienda"]
[null,null,13,null,"Cuotas Sindicales Pagadas por el Patrón",null,null,null,null,null,null,null,null,null,null,null,null,null,null,null,null,11,null,"Pago de abonos INFONACOT"]
[null,null,14,null,"Subsidios por incapacidad",null,null,null,null,null,null,null,null,null,null,null,null,null,null,null,null,12,null,"Anticipo de salarios"]
[null,null,15,null,"Becas para trabajadores y/o hijos",null,null,null,null,null,null,null,null,null,null,null,null,null,null,null,null,13,null,"Pagos hechos con exceso al trabajador"]
[null,null,19,null,"Horas extra",null,null,null,null,null,null,null,null,null,null,null,null,null,null,null,null,14,null,"Errores"]
[null,null,20,null,"Prima dominical",null,null,null,null,null,null,null,null,null,null,null,null,null,null,null,null,15,null,"Pérdidas"]
[null,null,21,null,"Prima vacacional",null,null,null,null,null,null,null,null,null,null,null,null,null,null,null,null,16,null,"Averías"]
[null,null,22,null,"Prima por antigüedad",null,null,null,null,null,null,null,null,null,null,null,null,null,null,null,null,17,null,"Adquisición de artículos producidos por la empresa o establecimiento"]
[null,null,23,null,"Pagos por separación",null,null,null,null,null,null,null,null,null,null,null,null,null,null,null,null,18,null,"Cuotas para la constitución y fomento de sociedades cooperativas y de cajas de ahorro"]
[null,null,24,null,"Seguro de retiro",null,null,null,null,null,null,null,null,null,null,null,null,null,null,null,null,19,null,"Cuotas sindicales"]
[null,null,25,null,"Indemnizaciones",null,null,null,null,null,null,null,null,null,null,null,null,null,null,null,null,20,null,"Ausencia (Ausentismo)"]
[null,null,26,null,"Reembolso por funeral",null,null,null,null,null,null,null,null,null,null,null,null,null,null,null,null,21,null,"Cuotas obrero patronales"]
[null,null,27,null,"Cuotas de seguridad social pagadas por el patrón",null,null,null,null,null,null,null,null,null,null,null,null,null,null,null,null,22,null,"Impuestos Locales"]
[null,null,28,null,"Comisiones",null,null,null,null,null,null,null,null,null,null,null,null,null,null,null,null,23,null,"Aportaciones voluntarias"]
[null,null,29,null,"Vales de despensa",null,null,null,null,null,null,null,null,null,null,null,null,null,null,null,null,24,null,"Ajuste en Gratificación Anual (Aguinaldo) Exento"]
[null,null,30,null,"Vales de restaurante",null,null,null,null,null,null,null,null,null,null,null,null,null,null,null,null,25,null,"Ajuste en Gratificación Anual (Aguinaldo) Gravado"]
[null,null,31,null,"Vales de gasolina",null,null,null,null,null,null,null,null,null,null,null,null,null,null,null,null,26,null,"Ajuste en Participación de los Trabajadores en las Utilidades PTU Exento"]
[null,null,32,null,"Vales de ropa",null,null,null,null,null,null,null,null,null,null,null,null,null,null,null,null,27,null,"Ajuste en Participación de los Trabajadores en las Utilidades PTU Gravado"]
[null,null,33,null,"Ayuda para renta",null,null,null,null,null,null,null,null,null,null,null,null,null,null,null,null,28,null,"Ajuste en Reembolso de Gastos Médicos Dentales y Hospitalarios Exento"]
[null,null,34,null,"Ayuda para artículos escolares",null,null,null,null,null,null,null,null,null,null,null,null,null,null,null,null,29,null,"Ajuste en Fondo de ahorro Exento"]
[null,null,35,null,"Ayuda para anteojos",null,null,null,null,null,null,null,null,null,null,null,null,null,null,null,null,30,null,"Ajuste en Caja de ahorro Exento"]
[null,null,36,null,"Ayuda para transporte",null,null,null,null,null,null,null,null,null,null,null,null,null,null,null,null,31,null,"Ajuste en Contribuciones a Cargo del Trabajador Pagadas por el Patrón Exento"]
[null,null,37,null,"Ayuda para gastos de funeral",null,null,null,null,null,null,null,null,null,null,null,null,null,null,null,null,32,null,"Ajuste en Premios por puntualidad Gravado"]
[null,null,38,null,"Otros ingresos por salarios",null,null,null,null,null,null,null,null,null,null,null,null,null,null,null,null,33,null,"Ajuste en Prima de Seguro de vida Exento"]
[null,null,39,null,"Jubilaciones, pensiones o haberes de retiro",null,null,null,null,null,null,null,null,null,null,null,null,null,null,null,null,34,null,"Ajuste en Seguro de Gastos Médicos Mayores Exento"]
[null,null,44,null,"Jubilaciones, pensiones o haberes de retiro en parcialidades",null,null,null,null,null,null,null,null,null,null,null,null,null,null,null,null,35,null,"Ajuste en Cuotas Sindicales Pagadas por el Patrón Exento"]
[null,null,45,null,"Ingresos en acciones o títulos valor que representan bienes",null,null,null,null,null,null,null,null,null,null,null,null,null,null,null,null,36,null,"Ajuste en Subsidios por incapacidad Exento"]
[null,null,46,null,"Ingresos asimilados a salarios",null,null,null,null,null,null,null,null,null,null,null,null,null,null,null,null,37,null,"Ajuste en Becas para trabajadores y/o hijos Exento"]
[null,null,47,null,"Alimentación",null,null,null,null,null,null,null,null,null,null,null,null,null,null,null,null,38,null,"Ajuste en Horas extra Exento"]
[null,null,48,null,"Habitación",null,null,null,null,null,null,null,null,null,null,null,null,null,null,null,null,39,null,"Ajuste en Horas extra Gravado"]
[null,null,49,null,"Premios por asistencia",null,null,null,null,null,null,null,null,null,null,null,null,null,null,null,null,40,null,"Ajuste en Prima dominical Exento"]
[null,null,50,null,"Viáticos",null,null,null,null,null,null,null,null,null,null,null,null,null,null,null,null,41,null,"Ajuste en Prima dominical Gravado"]
[null,null,null,null,null,null,null,null,null,null,null,null,null,null,null,null,null,null,null,null,null,42,null,"Ajuste en Prima vacacional Exento"]
[null,null,"Otros pagos",null,null,null,null,null,null,null,null,null,null,null,null,null,null,"IMPORTE",null,null,null,43,null,"Ajuste en Prima vacacional Gravado"]
[null,null,"O001",null,"Reintegro de ISR pagado en exceso (siempre que no haya sido enterado al SAT).",null,null,null,null,null,null,null,null,null,null,null,null,null,null,null,null,44,null,"Ajuste en Prima por antigüedad Exento"]
[null,null,"O002",null,"Subsidio para el empleo (efectivamente entregado al trabajador).","Subsidio para el empleo (efectivamente entregado al trabajador).","Subsidio para el empleo (efectivamente entregado al trabajador).","Subsidio para el empleo (efectivamente entregado al trabajador).","Subsidio para el empleo (efectivamente entregado al trabajador).","Subsidio para el empleo (efectivamente entregado al trabajador).","Subsidio para el empleo (efectivamente entregado al trabajador).","Subsidio para el empleo (efectivamente entregado al trabajador).","Subsidio para el empleo (efectivamente entregado al trabajador).",null,null,null,null,null,null,null,null,45,null,"Ajuste en Prima por antigüedad Gravado"]
[null,null,"O003",null,"Viáticos (entregados al trabajador).","Viáticos (entregados al trabajador).","Viáticos (entregados al trabajador).","Viáticos (entregados al trabajador).","Viáticos (entregados al trabajador).","Viáticos (entregados al trabajador).","Viáticos (entregados al trabajador).","Viáticos (entregados al trabajador).","Viáticos (entregados al trabajador).",null,null,null,null,null,null,null,null,46,null,"Ajuste en Pagos por separación Exento"]
[null,null,"O004",null,"Aplicación de saldo a favor por compensación anual.","Aplicación de saldo a favor por compensación anual.","Aplicación de saldo a favor por compensación anual.","Aplicación de saldo a favor por compensación anual.","Aplicación de saldo a favor por compensación anual.","Aplicación de saldo a favor por compensación anual.","Aplicación de saldo a favor por compensación anual.","Aplicación de saldo a favor por compensación anual.","Aplicación de saldo a favor por compensación anual.",null,null,null,null,null,null,null,null,47,null,"Ajuste en Pagos por separación Gravado"]
[null,null,"O005",null,"Reintegro de ISR retenido en exceso de ejercicio anterior (siempre que no haya sido enterado al SAT).","Reintegro de ISR retenido en exceso de ejercicio anterior (siempre que no haya sido enterado al SAT).","Reintegro de ISR retenido en exceso de ejercicio anterior (siempre que no haya sido enterado al SAT).","Reintegro de ISR retenido en exceso de ejercicio anterior (siempre que no haya sido enterado al SAT).","Reintegro de ISR retenido en exceso de ejercicio anterior (siempre que no haya sido enterado al SAT).","Reintegro de ISR retenido en exceso de ejercicio anterior (siempre que no haya sido enterado al SAT).","Reintegro de ISR retenido en exceso de ejercicio anterior (siempre que no haya sido enterado al SAT).","Reintegro de ISR retenido en exceso de ejercicio anterior (siempre que no haya sido enterado al SAT).","Reintegro de ISR retenido en exceso de ejercicio anterior (siempre que no haya sido enterado al SAT).",null,null,null,null,null,null,null,null,48,null,"Ajuste en Seguro de retiro Exento"]
[null,null,"O006",null,"Alimentos en bienes (Servicios de comedor y comida) Art 94 último párrafo LISR.","Alimentos en bienes (Servicios de comedor y comida) Art 94 último párrafo LISR.","Alimentos en bienes (Servicios de comedor y comida) Art 94 último párrafo LISR.","Alimentos en bienes (Servicios de comedor y comida) Art 94 último párrafo LISR.","Alimentos en bienes (Servicios de comedor y comida) Art 94 último párrafo LISR.","Alimentos en bienes (Servicios de comedor y comida) Art 94 último párrafo LISR.","Alimentos en bienes (Servicios de comedor y comida) Art 94 último párrafo LISR.","Alimentos en bienes (Servicios de comedor y comida) Art 94 último párrafo LISR.","Alimentos en bienes (Servicios de comedor y comida) Art 94 último párrafo LISR.",null,null,null,null,null,null,null,null,49,null,"Ajuste en Indemnizaciones Exento"]
[null,null,"O007",null,"ISR ajustado por subsidio.","ISR ajustado por subsidio.","ISR ajustado por subsidio.","ISR ajustado por subsidio.","ISR ajustado por subsidio.","ISR ajustado por subsidio.","ISR ajustado por subsidio.","ISR ajustado por subsidio.","ISR ajustado por subsidio.",null,null,null,null,null,null,null,null,50,null,"Ajuste en Indemnizaciones Gravado"]
[null,null,"O008",null,"Subsidio efectivamente entregado que no correspondía (Aplica sólo cuando haya ajuste al cierre de mes en relación con el Apéndice 7 de la guía de llenado de nómina).","Subsidio efectivamente entregado que no correspondía (Aplica sólo cuando haya ajuste al cierre de mes en relación con el Apéndice 7 de la guía de llenado de nómina).","Subsidio efectivamente entregado que no correspondía (Aplica sólo cuando haya ajuste al cierre de mes en relación con el Apéndice 7 de la guía de llenado de nómina).","Subsidio efectivamente entregado que no correspondía (Aplica sólo cuando haya ajuste al cierre de mes en relación con el Apéndice 7 de la guía de llenado de nómina).","Subsidio efectivamente entregado que no correspondía (Aplica sólo cuando haya ajuste al cierre de mes en relación con el Apéndice 7 de la guía de llenado de nómina).","Subsidio efectivamente entregado que no correspondía (Aplica sólo cuando haya ajuste al cierre de mes en relación con el Apéndice 7 de la guía de llenado de nómina).","Subsidio efectivamente entregado que no correspondía (Aplica sólo cuando haya ajuste al cierre de mes en relación con el Apéndice 7 de la guía de llenado de nómina).","Subsidio efectivamente entregado que no correspondía (Aplica sólo cuando haya ajuste al cierre de mes en relación con el Apéndice 7 de la guía de llenado de nómina).","Subsidio efectivamente entregado que no correspondía (Aplica sólo cuando haya ajuste al cierre de mes en relación con el Apéndice 7 de la guía de llenado de nómina).",null,null,null,null,null,null,null,null,51,null,"Ajuste en Reembolso por funeral Exento"]
[null,null,"O009",null,"Reembolso de descuentos efectuados para el crédito de vivienda.","Reembolso de descuentos efectuados para el crédito de vivienda.","Reembolso de descuentos efectuados para el crédito de vivienda.","Reembolso de descuentos efectuados para el crédito de vivienda.","Reembolso de descuentos efectuados para el crédito de vivienda.","Reembolso de descuentos efectuados para el crédito de vivienda.","Reembolso de descuentos efectuados para el crédito de vivienda.","Reembolso de descuentos efectuados para el crédito de vivienda.","Reembolso de descuentos efectuados para el crédito de vivienda.",null,null,null,null,null,null,null,null,52,null,"Ajuste en Cuotas de seguridad social pagadas por el patrón Exento"]
[null,null,"O999",999,"Pagos distintos a los listados y que no deben considerarse como ingreso por sueldos, salarios o ingresos asimilados.","Pagos distintos a los listados y que no deben considerarse como ingreso por sueldos, salarios o ingresos asimilados.","Pagos distintos a los listados y que no deben considerarse como ingreso por sueldos, salarios o ingresos asimilados.","Pagos distintos a los listados y que no deben considerarse como ingreso por sueldos, salarios o ingresos asimilados.","Pagos distintos a los listados y que no deben considerarse como ingreso por sueldos, salarios o ingresos asimilados.","Pagos distintos a los listados y que no deben considerarse como ingreso por sueldos, salarios o ingresos asimilados.","Pagos distintos a los listados y que no deben considerarse como ingreso por sueldos, salarios o ingresos asimilados.","Pagos distintos a los listados y que no deben considerarse como ingreso por sueldos, salarios o ingresos asimilados.","Pagos distintos a los listados y que no deben considerarse como ingreso por sueldos, salarios o ingresos asimilados.",null,null,null,null,null,null,null,null,53,null,"Ajuste en Comisiones Gravado"]
[null,null,null,null,null,null,null,null,null,null,null,null,null,null,null,null,null,null,null,null,null,54,null,"Ajuste en Vales de despensa Exento"]
[null,null,null,null,null,null,null,null,null,null,null,null,null,null,null,null,null,null,null,null,null,55,null,"Ajuste en Vales de restaurante Exento"]
[null,null,null,null,null,null,null,null,null,null,null,null,null,null,null,null,null,null,null,null,null,56,null,"Ajuste en Vales de gasolina Exento"]
[null,null,null,null,null,null,null,null,null,null,null,null,null,null,null,null,null,null,null,null,null,57,null,"Ajuste en Vales de ropa Exento"]
[null,null,null,null,null,null,null,null,null,null,null,null,null,null,null,null,null,null,null,null,null,58,null,"Ajuste en Ayuda para renta Exento"]
[null,null,null,null,null,null,null,null,null,null,null,null,null,null,null,null,null,null,null,null,null,59,null,"Ajuste en Ayuda para artículos escolares Exento"]
[null,null,null,null,null,null,null,null,null,null,null,null,null,null,null,null,null,null,null,null,null,60,null,"Ajuste en Ayuda para anteojos Exento"]
[null,null,null,null,null,null,null,null,null,null,null,null,null,null,null,null,null,null,null,null,null,61,null,"Ajuste en Ayuda para transporte Exento"]
[null,null,null,null,null,null,null,null,null,null,null,null,null,null,null,null,null,null,null,null,null,62,null,"Ajuste en Ayuda para gastos de funeral Exento"]
[null,null,null,null,null,null,null,null,null,null,null,null,null,null,null,null,null,null,null,null,null,63,null,"Ajuste en Otros ingresos por salarios Exento"]
[null,null,null,null,null,null,null,null,null,null,null,null,null,null,null,null,null,null,null,null,null,64,null,"Ajuste en Otros ingresos por salarios Gravado"]
[null,null,null,null,null,null,null,null,null,null,null,null,null,null,null,null,null,null,null,null,null,65,null,"Ajuste en Jubilaciones, pensiones o haberes de retiro Exento"]
[null,null,null,null,null,null,null,null,null,null,null,null,null,null,null,null,null,null,null,null,null,66,null,"Ajuste en Jubilaciones, pensiones o haberes de retiro Gravado"]
[null,null,null,null,null,null,null,null,null,null,null,null,null,null,null,null,null,null,null,null,null,67,null,"Ajuste en Pagos por separación Acumulable"]
[null,null,null,null,null,null,null,null,null,null,null,null,null,null,null,null,null,null,null,null,null,68,null,"Ajuste en Pagos por separación No acumulable"]
[null,null,null,null,null,null,null,null,null,null,null,null,null,null,null,null,null,null,null,null,null,69,null,"Ajuste en Jubilaciones, pensiones o haberes de retiro Acumulable"]
[null,null,null,null,null,null,null,null,null,null,null,null,null,null,null,null,null,null,null,null,null,70,null,"Ajuste en Jubilaciones, pensiones o haberes de retiro No acumulable"]
[null,null,null,null,null,null,null,null,null,null,null,null,null,null,null,null,null,null,null,null,null,71,null,"Ajuste en Subsidio para el empleo (efectivamente entregado al trabajador)"]
[null,null,null,null,null,null,null,null,null,null,null,null,null,null,null,null,null,null,null,null,null,72,null,"Ajuste en Ingresos en acciones o títulos valor que representan bienes Exento"]
[null,null,null,null,null,null,null,null,null,null,null,null,null,null,null,null,null,null,null,null,null,73,null,"Ajuste en Ingresos en acciones o títulos valor que representan bienes Gravado"]
[null,null,null,null,null,null,null,null,null,null,null,null,null,null,null,null,null,null,null,null,null,74,null,"Ajuste en Alimentación Exento"]
[null,null,null,null,null,null,null,null,null,null,null,null,null,null,null,null,null,null,null,null,null,75,null,"Ajuste en Alimentación Gravado"]
[null,null,null,null,null,null,null,null,null,null,null,null,null,null,null,null,null,null,null,null,null,76,null,"Ajuste en Habitación Exento"]
[null,null,null,null,null,null,null,null,null,null,null,null,null,null,null,null,null,null,null,null,null,77,null,"Ajuste en Habitación Gravado"]
[null,null,null,null,null,null,null,null,null,null,null,null,null,null,null,null,null,null,null,null,null,78,null,"Ajuste en Premios por asistencia"]
[null,null,null,null,null,null,null,null,null,null,null,null,null,null,null,null,null,null,null,null,null,79,null,"Ajuste en Pagos distintos a los listados y que no deben considerarse como ingreso por sueldos, salarios o ingresos asimilados."]
[null,null,null,null,null,null,null,null,null,null,null,null,null,null,null,null,null,null,null,null,null,80,null,"Ajuste en Viáticos no comprobados"]
[null,null,null,null,null,null,null,null,null,null,null,null,null,null,null,null,null,null,null,null,null,81,null,"Ajuste en Viáticos anticipados"]
[null,null,null,null,null,null,null,null,null,null,null,null,null,null,null,null,null,null,null,null,null,82,null,"Ajuste en Fondo de ahorro Gravado"]
[null,null,null,null,null,null,null,null,null,null,null,null,null,null,null,null,null,null,null,null,null,83,null,"Ajuste en Caja de ahorro Gravado"]
[null,null,null,null,null,null,null,null,null,null,null,null,null,null,null,null,null,null,null,null,null,84,null,"Ajuste en Prima de Seguro de vida Gravado"]
[null,null,null,null,null,null,null,null,null,null,null,null,null,null,null,null,null,null,null,null,null,85,null,"Ajuste en Seguro de Gastos Médicos Mayores Gravado"]
[null,null,null,null,null,null,null,null,null,null,null,null,null,null,null,null,null,null,null,null,null,86,null,"Ajuste en Subsidios por incapacidad Gravado"]
[null,null,null,null,null,null,null,null,null,null,null,null,null,null,null,null,null,null,null,null,null,87,null,"Ajuste en Becas para trabajadores y/o hijos Gravado"]
[null,null,null,null,null,null,null,null,null,null,null,null,null,null,null,null,null,null,null,null,null,88,null,"Ajuste en Seguro de retiro Gravado"]
[null,null,null,null,null,null,null,null,null,null,null,null,null,null,null,null,null,null,null,null,null,89,null,"Ajuste en Vales de despensa Gravado"]
[null,null,null,null,null,null,null,null,null,null,null,null,null,null,null,null,null,null,null,null,null,90,null,"Ajuste en Vales de restaurante Gravado"]
[null,null,null,null,null,null,null,null,null,null,null,null,null,null,null,null,null,null,null,null,null,91,null,"Ajuste en Vales de gasolina Gravado"]
[null,null,null,null,null,null,null,null,null,null,null,null,null,null,null,null,null,null,null,null,null,92,null,"Ajuste en Vales de ropa Gravado"]
[null,null,null,null,null,null,null,null,null,null,null,null,null,null,null,null,null,null,null,null,null,93,null,"Ajuste en Ayuda para renta Gravado"]
[null,null,null,null,null,null,null,null,null,null,null,null,null,null,null,null,null,null,null,null,null,94,null,"Ajuste en Ayuda para artículos escolares Gravado"]
[null,null,null,null,null,null,null,null,null,null,null,null,null,null,null,null,null,null,null,null,null,95,null,"Ajuste en Ayuda para anteojos Gravado"]
[null,null,null,null,null,null,null,null,null,null,null,null,null,null,null,null,null,null,null,null,null,96,null,"Ajuste en Ayuda para transporte Gravado"]
[null,null,null,null,null,null,null,null,null,null,null,null,null,null,null,null,null,null,null,null,null,97,null,"Ajuste en Ayuda para gastos de funeral Gravado"]
[null,null,null,null,null,null,null,null,null,null,null,null,null,null,null,null,null,null,null,null,null,98,null,"Ajuste a ingresos asimilados a salarios gravados"]
[null,null,null,null,null,null,null,null,null,null,null,null,null,null,null,null,null,null,null,null,null,99,null,"Ajuste a ingresos por sueldos y salarios gravados"]
[null,null,null,null,null,null,null,null,null,null,null,null,null,null,null,null,null,null,null,null,null,100,null,"Ajuste en Viáticos exentos"]
[null,null,null,null,null,null,null,null,null,null,null,null,null,null,null,null,null,null,null,null,null,101,null,"ISR Retenido de ejercicio anterior"]
[null,null,null,null,null,null,null,null,null,null,null,null,null,null,null,null,null,null,null,null,null,102,null,"Ajuste a pagos por gratificaciones, primas, compensaciones, recompensas u otros a extrabajadores derivados de jubilación en parcialidades, gravados"]
[null,null,null,null,null,null,null,null,null,null,null,null,null,null,null,null,null,null,null,null,null,103,null,"Ajuste a pagos que se realicen a extrabajadores que obtengan una jubilación en parcialidades derivados de la ejecución de una resolución judicial o de un laudo gravados"]
[null,null,null,null,null,null,null,null,null,null,null,null,null,null,null,null,null,null,null,null,null,104,null,"Ajuste a pagos que se realicen a extrabajadores que obtengan una jubilación en parcialidades derivados de la ejecución de una resolución judicial o de un laudo exentos"]
[null,null,null,null,null,null,null,null,null,null,null,null,null,null,null,null,null,null,null,null,null,105,null,"Ajuste a pagos que se realicen a extrabajadores que obtengan una jubilación en una sola exhibición derivados de la ejecución de una resolución judicial o de un laudo gravados"]
[null,null,null,null,null,null,null,null,null,null,null,null,null,null,null,null,null,null,null,null,null,106,null,"Ajuste a pagos que se realicen a extrabajadores que obtengan una jubilación en una sola exhibición derivados de la ejecución de una resolución judicial o de un laudo exentos"]
[null,null,null,null,null,null,null,null,null,null,null,null,null,null,null,null,null,null,null,null,null,107,null,"Ajuste al Subsidio Causado "]
[null,null,null,null,null,null,null,null,null,null,null,null,"Total Grav/Total Exe:",{"$f":"SUM(N25:Q66)","v":0},null,null,null,{"$f":"SUM(R25:U65,R68:U77)","v":0}]
[null,null,null,null,null,null,null,null,null,null,null,null,"Total de Percepciones:",{"$f":"SUM(N132:U132)","v":0},null,null,null,null,null,null,null,null,null,null,null,null,null,"Total de Deducciones:",null,null,null,null,null,null,null,null,{"$f":"SUM(AK25:AN131)","v":0}]
[]
[null,null,"NETO A PAGAR:",null,null,null,null,null,null,null,null,null,null,{"$f":"IFERROR(N133-AK133,0)","v":0}]

{"sheet":"TARIFAS (2)","index":14,"n_rows":244,"n_cols":9,"rows_kept":244,"cut":false,"hidden":true,"merged":[[67,1,67,4],[3,1,3,4],[3,6,3,8],[4,6,4,8],[36,1,36,4],[51,1,51,4],[179,1,179,4],[195,1,195,4],[211,1,211,4],[229,1,229,4],[83,1,83,4],[99,1,99,4],[115,1,115,4],[131,1,131,4],[147,1,147,4],[163,1,163,4]]}
[]
[]
[]
[null,"V. Tarifa aplicable durante 2025 para el cálculo de los pagos provisionales mensuales.",null,null,null,null,"Tabla del subsidio para el empleo aplicable a la tarifa del numeral 5 del rubro B."]
[null,"Límite inferior","Límite superior","Cuota fija","Por ciento para aplicarse sobre",null,"Monto de ingresos que sirven de base para calcular el impuesto"]
[null,null,null,null,"el excedente del límite inferior",null,"Para Ingresos de","Hasta Ingresos de","Cantidad de subsidio para el empleo mensual"]
[null,"$","$","$","%",null,"$","$","$"]
[null,0.01,746.04,0,1.92,null,0.01,1768.96,407.02]
[null,746.05,6332.05,14.32,6.4,null,1768.97,2653.38,406.83]
[null,6332.06,11128.01,371.83,10.88,null,2653.39,3472.84,406.62]
[null,11128.02,12935.82,893.63,16,null,3472.85,3537.87,392.77]
[null,12935.83,15487.71,1182.8800000000001,17.920000000000002,null,3537.88,4446.1499999999996,382.46]
[null,15487.72,31236.49,1640.18,21.36,null,4446.16,4717.18,354.23]
[null,31236.5,49233,5004.12,23.52,null,4717.1899999999996,5335.42,324.87]
[null,49233.01,93993.9,9236.89,30,null,5335.43,6224.67,294.63]
[null,93993.91,125325.2,22665.17,32,null,6224.68,7113.9,253.54]
[null,125325.21,375975.61,32691.18,34,null,7113.91,7382.33,217.61]
[null,375975.62,"En adelante",117912.32000000001,35,null,7382.34,"En adelante",0]
[]
[]
[]
[null,"Descripción","Días"]
[null,"Diario",1]
[null,"Semanal",7]
[null,"Catorcenal",14]
[null,"Quincenal",30]
[null,"Mensual",30]
[null,"Bimestral",60]
[null,"Unidad obra",30]
[null,"Comisión",30]
[null,"Precio alzado",30]
[null,"Decenal",10]
[null,"Otra Periodicidad",30]
[]
[]
[]
[null,"VI. Tarifa del mes de enero de 2025, para efectuar los pagos provisionales mensuales a que se refiere el artículo 106 de la Ley del ISR, aplicable a los ingresos que perciban los contribuyentes a que se refiere el Título IV, Capítulo II, Sección I de la Ley del ISR."]
[null,"Límite inferior","Límite superior","Cuota fija","Por ciento para aplicarse sobre el excedente del límite inferior"]
[null,"$","$","$","%"]
[null,0.01,746.04,0,1.92]
[null,746.05,6332.05,14.32,6.4]
[null,6332.06,11128.01,371.83,10.88]
[null,11128.02,12935.82,893.63,16]
[null,12935.83,15487.71,1182.8800000000001,17.920000000000002]
[null,15487.72,31236.49,1640.18,21.36]
[null,31236.5,49233,5004.12,23.52]
[null,49233.01,93993.9,9236.89,30]
[null,93993.91,125325.2,22665.17,32]
[null,125325.21,375975.61,32691.18,34]
[null,375975.62,"En adelante",117912.32000000001,35]
[]
[null,"Tarifa para el pago provisional del mes de febrero de 2025, aplicable a los ingresos que perciban los contribuyentes a que se refiere el Capítulo II, Sección I, del Título IV de la Ley del Impuesto sobre la Renta."]
[null,"Límite inferior","Límite superior","Cuota fija","Por ciento para aplicarse sobre"]
[null,null,null,null,"el excedente del límite inferior"]
[null,"$","$","$","%"]
[null,0.01,1492.08,0,1.92]
[null,1492.09,12664.1,28.64,6.4]
[null,12664.11,22256.02,743.66,10.88]
[null,22256.03,25871.64,1787.26,16]
[null,25871.65,30975.42,2365.7600000000002,17.920000000000002]
[null,30975.43,62472.98,3280.36,21.36]
[null,62472.99,98466,10008.24,23.52]
[null,98466.01,187987.8,18473.78,30]
[null,187987.81,250650.4,45330.34,32]
[null,250650.41,751951.22,65382.36,34]
[null,751951.23,"En adelante",235824.64000000001,35]
[]
[null,"Tarifa para el pago provisional del mes de marzo de 2025, aplicable a los ingresos que perciban los contribuyentes a que se refiere el Capítulo II, Sección I, del Título IV de la Ley del Impuesto sobre la Renta."]
[null,"Límite inferior","Límite superior","Cuota fija","Por ciento para aplicarse sobre"]
[null,null,null,null,"el excedente del límite inferior"]
[null,"$","$","$","%"]
[null,0.01,2238.12,0,1.92]
[null,2238.13,18996.150000000001,42.96,6.4]
[null,18996.16,33384.03,1115.49,10.88]
[null,33384.04,38807.46,2680.89,16]
[null,38807.47,46463.13,3548.64,17.920000000000002]
[null,46463.14,93709.47,4920.54,21.36]
[null,93709.48,147699,15012.36,23.52]
[null,147699.01,281981.7,27710.67,30]
[null,281981.71000000002,375975.6,67995.509999999995,32]
[null,375975.61,1127926.83,98073.54,34]
[null,1127926.8400000001,"En adelante",353736.96000000002,35]
[]
[null,"Tarifa para el pago provisional del mes de abril de 2025, aplicable a los ingresos que perciban los contribuyentes a que se refiere el Capítulo II, Sección I, del Título IV de la Ley del Impuesto sobre la Renta."]
[null,"Límite inferior","Límite superior","Cuota fija","Por ciento para aplicarse sobre"]
[null,null,null,null,"el excedente del límite inferior"]
[null,"$","$","$","%"]
[null,0.01,2984.16,0,1.92]
[null,2984.17,25328.2,57.28,6.4]
[null,25328.21,44512.04,1487.32,10.88]
[null,44512.05,51743.28,3574.52,16]
[null,51743.29,61950.84,4731.5200000000004,17.920000000000002]
[null,61950.85,124945.96,6560.72,21.36]
[null,124945.97,196932,20016.48,23.52]
[null,196932.01,375975.6,36947.56,30]
[null,375975.61,501300.8,90660.68,32]
[null,501300.81,1503902.44,130764.72,34]
[null,1503902.45,"En adelante",471649.28000000003,35]
[]
[null,"Tarifa para el pago provisional del mes de mayo de 2025, aplicable a los ingresos que perciban los contribuyentes a que se refiere el Capítulo II, Sección I, del Título IV de la Ley del Impuesto sobre la Renta."]
[null,"Límite inferior","Límite superior","Cuota fija","Por ciento para aplicarse sobre"]
[null,null,null,null,"el excedente del límite inferior"]
[null,"$","$","$","%"]
[null,0.01,3730.2,0,1.92]
[null,3730.21,31660.25,71.599999999999994,6.4]
[null,31660.26,55640.05,1859.15,10.88]
[null,55640.06,64679.1,4468.1499999999996,16]
[null,64679.11,77438.55,5914.4,17.920000000000002]
[null,77438.559999999998,156182.45000000001,8200.9,21.36]
[null,156182.46,246165,25020.6,23.52]
[null,246165.01,469969.5,46184.45,30]
[null,469969.51,626626,113325.85,32]
[null,626626.01,1879878.05,163455.9,34]
[null,1879878.06,"En adelante",589561.59999999998,35]
[]
[null,"Tarifa para el pago provisional del mes de junio de 2025, aplicable a los ingresos que perciban los contribuyentes a que se refiere el Capítulo II, Sección I, del Título IV de la Ley del Impuesto sobre la Renta."]
[null,"Límite inferior","Límite superior","Cuota fija","Por ciento para aplicarse sobre"]
[null,null,null,null,"el excedente del límite inferior"]
[null,"$","$","$","%"]
[null,0.01,4476.24,0,1.92]
[null,4476.25,37992.300000000003,85.92,6.4]
[null,37992.31,66768.06,2230.98,10.88]
[null,66768.070000000007,77614.92,5361.78,16]
[null,77614.929999999993,92926.26,7097.28,17.920000000000002]
[null,92926.27,187418.94,9841.08,21.36]
[null,187418.95,295398,30024.720000000001,23.52]
[null,295398.01,563963.4,55421.34,30]
[null,563963.41,751951.2,135991.01999999999,32]
[null,751951.21,2255853.66,196147.08,34]
[null,2255853.67,"En adelante",707473.92000000004,35]
[]
[null,"Tarifa para el pago provisional del mes de julio de 2025, aplicable a los ingresos que perciban los contribuyentes a que se refiere el Capítulo II, Sección I, del Título IV de la Ley del Impuesto sobre la Renta."]
[null,"Límite inferior","Límite superior","Cuota fija","Por ciento para aplicarse sobre"]
[null,null,null,null,"el excedente del límite inferior"]
[null,"$","$","$","%"]
[null,0.01,5222.28,0,1.92]
[null,5222.29,44324.35,100.24,6.4]
[null,44324.36,77896.070000000007,2602.81,10.88]
[null,77896.08,90550.74,6255.41,16]
[null,90550.75,108413.97,8280.16,17.920000000000002]
[null,108413.98,218655.43,11481.26,21.36]
[null,218655.44,344631,35028.839999999997,23.52]
[null,344631.01,657957.30000000005,64658.23,30]
[null,657957.31000000006,877276.4,158656.19,32]
[null,877276.41,2631829.27,228838.26,34]
[null,2631829.2799999998,"En adelante",825386.24,35]
[]
[null,"Tarifa para el pago provisional del mes de agosto de 2025, aplicable a los ingresos que perciban los contribuyentes a que se refiere el Capítulo II, Sección I, del Título IV de la Ley del Impuesto sobre la Renta."]
[null,"Límite inferior","Límite superior","Cuota fija","Por ciento para aplicarse sobre"]
[null,null,null,null,"el excedente del límite inferior"]
[null,"$","$","$","%"]
[null,0.01,5968.32,0,1.92]
[null,5968.33,50656.4,114.56,6.4]
[null,50656.41,89024.08,2974.64,10.88]
[null,89024.09,103486.56,7149.04,16]
[null,103486.57,123901.68,9463.0400000000009,17.920000000000002]
[null,123901.69,249891.92,13121.44,21.36]
[null,249891.93,393864,40032.959999999999,23.52]
[null,393864.01,751951.2,73895.12,30]
[null,751951.21,1002601.6,181321.36,32]
[null,1002601.61,3007804.88,261529.44,34]
[null,3007804.89,"En adelante",943298.56000000006,35]
[]
[null,"Tarifa para el pago provisional del mes de septiembre de 2025, aplicable a los ingresos que perciban los contribuyentes a que se refiere el Capítulo II, Sección I, del Título IV de la Ley del Impuesto sobre la Renta."]
[null,"Límite inferior","Límite superior","Cuota fija","Por ciento para aplicarse sobre"]
[null,null,null,null,"el excedente del límite inferior"]
[null,"$","$","$","%"]
[null,0.01,6714.36,0,1.92]
[null,6714.37,56988.45,128.88,6.4]
[null,56988.46,100152.09,3346.47,10.88]
[null,100152.1,116422.38,8042.67,16]
[null,116422.39,139389.39000000001,10645.92,17.920000000000002]
[null,139389.4,281128.40999999997,14761.62,21.36]
[null,281128.42,443097,45037.08,23.52]
[null,443097.01,845945.1,83132.009999999995,30]
[null,845945.11,1127926.8,203986.53,32]
[null,1127926.81,3383780.49,294220.62,34]
[null,3383780.5,"En adelante",1061210.8799999999,35]
[]
[null,"Tarifa para el pago provisional del mes de octubre de 2025, aplicable a los ingresos que perciban los contribuyentes a que se refiere el Capítulo II, Sección I, del Título IV de la Ley del Impuesto sobre la Renta."]
[null,"Límite inferior","Límite superior","Cuota fija","Por ciento para aplicarse sobre"]
[null,null,null,null,"el excedente del límite inferior"]
[null,"$","$","$","%"]
[null,0.01,7460.4,0,1.92]
[null,7460.41,63320.5,143.19999999999999,6.4]
[null,63320.51,111280.1,3718.3,10.88]
[null,111280.11,129358.2,8936.2999999999993,16]
[null,129358.21,154877.1,11828.8,17.920000000000002]
[null,154877.10999999999,312364.90000000002,16401.8,21.36]
[null,312364.90999999997,492330,50041.2,23.52]
[null,492330.01,939939,92368.9,30]
[null,939939.01,1253252,226651.7,32]
[null,1253252.01,3759756.1,326911.8,34]
[null,3759756.11,"En adelante",1179123.2,35]
[]
[null,"Tarifa para el pago provisional del mes de noviembre de 2025, aplicable a los ingresos que perciban los contribuyentes a que se refiere el Capítulo II, Sección I, del Título IV de la Ley del Impuesto sobre la Renta."]
[null,"Límite inferior","Límite superior","Cuota fija","Por ciento para aplicarse sobre"]
[null,null,null,null,"el excedente del límite inferior"]
[null,"$","$","$","%"]
[null,0.01,8206.44,0,1.92]
[null,8206.4500000000007,69652.55,157.52000000000001,6.4]
[null,69652.56,122408.11,4090.13,10.88]
[null,122408.12,142294.01999999999,9829.93,16]
[null,142294.03,170364.81,13011.68,17.920000000000002]
[null,170364.82,343601.39,18041.98,21.36]
[null,343601.4,541563,55045.32,23.52]
[null,541563.01,1033932.9,101605.79,30]
[null,1033932.91,1378577.2,249316.87,32]
[null,1378577.21,4135731.71,359602.98,34]
[null,4135731.72,"En adelante",1297035.52,35]
[]
[null,"Tarifa para el pago provisional del mes de diciembre de 2025, aplicable a los ingresos que perciban los contribuyentes a que se refiere el Capítulo II, Sección I, del Título IV de la Ley del Impuesto sobre la Renta."]
[null,"Límite inferior","Límite superior","Cuota fija","Por ciento para aplicarse sobre"]
[null,null,null,null,"el excedente del límite inferior"]
[null,"$","$","$","%"]
[null,0.01,8952.49,0,1.92]
[null,8952.5,75984.55,171.88,6.4]
[null,75984.56,133536.07,4461.9399999999996,10.88]
[null,133536.07999999999,155229.79999999999,10723.55,16]
[null,155229.81,185852.57,14194.54,17.920000000000002]
[null,185852.58,374837.88,19682.13,21.36]
[null,374837.89,590795.99,60049.4,23.52]
[null,590796,1127926.8400000001,110842.74,30]
[null,1127926.8500000001,1503902.46,271981.99,32]
[null,1503902.47,4511707.37,392294.17,34]
[null,4511707.38,"En adelante",1414947.85,35]
[]
[]
[]
[null,"2. Tarifa para el cálculo del impuesto correspondiente al ejercicio 2023."]
[null,"Límite inferior","Límite superior","Cuota fija","Por ciento para aplicarse sobre"]
[null,null,null,null,"el excedente del límite inferior"]
[null,"$","$","$","%"]
[null,0.01,8952.49,0,1.92]
[null,8952.5,75984.55,171.88,6.4]
[null,75984.56,133536.07,4461.9399999999996,10.88]
[null,133536.07999999999,155229.79999999999,10723.55,16]
[null,155229.81,185852.57,14194.54,17.920000000000002]
[null,185852.58,374837.88,19682.13,21.36]
[null,374837.89,590795.99,60049.4,23.52]
[null,590796,1127926.8400000001,110842.74,30]
[null,1127926.8500000001,1503902.46,271981.99,32]
[null,1503902.47,4511707.37,392294.17,34]
[null,4511707.38,"En adelante",1414947.85,35]

{"sheet":"GENERALES1","index":15,"n_rows":66,"n_cols":4,"rows_kept":66,"cut":false,"hidden":true,"merged":[[4,1,4,3],[5,1,5,2],[19,1,19,2],[23,1,23,2]]}
[]
[]
[]
[]
[null,"Tabla de vacaciones para trabajadores de no buques (art. 76 LFT)"]
[null,"Años"]
[null,"Mínimo","Máximo","Días"]
[null,0,1,12]
[null,{"$f":"C8+0.01","v":1.01},2,{"$f":"D8+2","v":14}]
[null,{"$f":"C9+0.01","v":2.0099999999999998},3,{"$f":"D9+2","v":16}]
[null,3.01,4,18]
[null,4.01,5,20]
[null,5.01,{"$f":"C12+5","v":10},22]
[null,10.01,{"$f":"C13+5","v":15},24]
[null,15.01,20,26]
[null,20.010000000000002,25,28]
[null,25.01,30,30]
[null,30.01,35,32]
[]
[null,"Salario mínimo"]
[null,"Zona Libre de la Frontera Norte",419.88]
[null,"Zona del Salario Mínimo General",278.8]
[]
[null,"Valor de la UMA"]
[null,"Enero",108.57]
[null,"Febrero en adelante",113.14]
[]
[null,"Valor de la UMA mensual enero",3300.53]
[null,"Valor de la UMA mensual posterior",3439.46]
[null,"Total base ISR para subsidio",10171]
[null,"% del subsidio al empleo",0.13800000000000001]
[null,"% Subsidio al empleo Enero",0.1439]
[]
[]
[null,"Días"]
[null,1]
[null,2]
[null,3]
[null,4]
[null,5]
[null,6]
[null,7]
[null,8]
[null,9]
[null,10]
[null,11]
[null,12]
[null,13]
[null,14]
[null,15]
[null,16]
[null,17]
[null,18]
[null,19]
[null,20]
[null,21]
[null,22]
[null,23]
[null,24]
[null,25]
[null,26]
[null,27]
[null,28]
[null,29]
[null,30]
[null,31]

{"sheet":"c_Estado","index":16,"n_rows":100,"n_cols":6,"rows_kept":100,"cut":false,"hidden":true,"merged":[[0,0,0,2]]}
["Catálogo de estados. "]
["Versión CFDI","Versión catálogo","Revisión catálogo","Fecha publicación de catálogo","Fecha  inicio de vigencia del catálogo","Fecha fin de vigencia del catálogo"]
[4,1,0,0,"2022-01-01"]
[]
["c_Estado","c_Pais","Nombre del estado","Fecha inicio de vigencia","Fecha fin de vigencia"]
["AGU","MEX","Aguascalientes","2022-01-01"]
["BCN","MEX","Baja California","2022-01-01"]
["BCS","MEX","Baja California Sur","2022-01-01"]
["CAM","MEX","Campeche","2022-01-01"]
["CHP","MEX","Chiapas","2022-01-01"]
["CHH","MEX","Chihuahua","2022-01-01"]
["COA","MEX","Coahuila","2022-01-01"]
["COL","MEX","Colima","2022-01-01"]
["CMX","MEX","Ciudad de México","2022-01-01"]
["DUR","MEX","Durango","2022-01-01"]
["GUA","MEX","Guanajuato","2022-01-01"]
["GRO","MEX","Guerrero","2022-01-01"]
["HID","MEX","Hidalgo","2022-01-01"]
["JAL","MEX","Jalisco","2022-01-01"]
["MEX","MEX","Estado de México","2022-01-01"]
["MIC","MEX","Michoacán","2022-01-01"]
["MOR","MEX","Morelos","2022-01-01"]
["NAY","MEX","Nayarit","2022-01-01"]
["NLE","MEX","Nuevo León","2022-01-01"]
["OAX","MEX","Oaxaca","2022-01-01"]
["PUE","MEX","Puebla","2022-01-01"]
["QUE","MEX","Querétaro","2022-01-01"]
["ROO","MEX","Quintana Roo","2022-01-01"]
["SLP","MEX","San Luis Potosí","2022-01-01"]
["SIN","MEX","Sinaloa","2022-01-01"]
["SON","MEX","Sonora","2022-01-01"]
["TAB","MEX","Tabasco","2022-01-01"]
["TAM","MEX","Tamaulipas","2022-01-01"]
["TLA","MEX","Tlaxcala","2022-01-01"]
["VER","MEX","Veracruz","2022-01-01"]
["YUC","MEX","Yucatán","2022-01-01"]
["ZAC","MEX","Zacatecas","2022-01-01"]
["AL","USA","Alabama","2022-01-01"]
["AK","USA","Alaska","2022-01-01"]
["AZ","USA","Arizona","2022-01-01"]
["AR","USA","Arkansas","2022-01-01"]
["CA","USA","California","2022-01-01"]
["NC","USA","Carolina del Norte","2022-01-01"]
["SC","USA","Carolina del Sur","2022-01-01"]
["CO","USA","Colorado","2022-01-01"]
["CT","USA","Connecticut","2022-01-01"]
["ND","USA","Dakota del Norte","2022-01-01"]
["SD","USA","Dakota del Sur","2022-01-01"]
["DE","USA","Delaware","2022-01-01"]
["FL","USA","Florida","2022-01-01"]
["GA","USA","Georgia","2022-01-01"]
["HI","USA","Hawái","2022-01-01"]
["ID","USA","Idaho","2022-01-01"]
["IL","USA","Illinois","2022-01-01"]
["IN","USA","Indiana","2022-01-01"]
["IA","USA","Iowa","2022-01-01"]
["KS","USA","Kansas","2022-01-01"]
["KY","USA","Kentucky","2022-01-01"]
["LA","USA","Luisiana","2022-01-01"]
["ME","USA","Maine","2022-01-01"]
["MD","USA","Maryland","2022-01-01"]
["MA","USA","Massachusetts","2022-01-01"]
["MI","USA","Míchigan","2022-01-01"]
["MN","USA","Minnesota","2022-01-01"]
["MS","USA","Misisipi","2022-01-01"]
["MO","USA","Misuri","2022-01-01"]
["MT","USA","Montana","2022-01-01"]
["NE","USA","Nebraska","2022-01-01"]
["NV","USA","Nevada","2022-01-01"]
["NJ","USA","Nueva Jersey","2022-01-01"]
["NY","USA","Nueva York","2022-01-01"]
["NH","USA","Nuevo Hampshire","2022-01-01"]
["NM","USA","Nuevo México","2022-01-01"]
["OH","USA","Ohio","2022-01-01"]
["OK","USA","Oklahoma","2022-01-01"]
["OR","USA","Oregón","2022-01-01"]
["PA","USA","Pensilvania","2022-01-01"]
["RI","USA","Rhode Island","2022-01-01"]
["TN","USA","Tennessee","2022-01-01"]
["TX","USA","Texas","2022-01-01"]
["UT","USA","Utah","2022-01-01"]
["VT","USA","Vermont","2022-01-01"]
["VA","USA","Virginia","2022-01-01"]
["WV","USA","Virginia Occidental","2022-01-01"]
["WA","USA","Washington","2022-01-01"]
["WI","USA","Wisconsin","2022-01-01"]
["WY","USA","Wyoming","2022-01-01"]
["ON","CAN","Ontario ","2022-01-01"]
["QC","CAN"," Quebec ","2022-01-01"]
["NS","CAN"," Nueva Escocia","2022-01-01"]
["NB","CAN","Nuevo Brunswick ","2022-01-01"]
["MB","CAN"," Manitoba","2022-01-01"]
["BC","CAN"," Columbia Británica","2022-01-01"]
["PE","CAN"," Isla del Príncipe Eduardo","2022-01-01"]
["SK","CAN"," Saskatchewan","2022-01-01"]
["AB","CAN"," Alberta","2022-01-01"]
["NL","CAN"," Terranova y Labrador","2022-01-01"]
["NT","CAN"," Territorios del Noroeste","2022-01-01"]
["YT","CAN"," Yukón","2022-01-01"]
["UN","CAN"," Nunavut","2022-01-01"]

{"sheet":"GENERALES","index":17,"n_rows":32,"n_cols":12,"rows_kept":32,"cut":false,"hidden":true,"merged":[[8,5,8,6],[8,9,8,10],[3,1,3,3],[3,5,3,7],[3,9,3,11],[4,1,4,2],[4,5,4,6],[4,9,4,10]]}
[]
[null,"Datos generales para los calculos"]
[]
[null,"Tabla de vacaciones para trabajadores de no buques (art. 76 LFT)",null,null,null,"Días de aguinaldo que otroga la empresa (art. 87 LFT)",null,null,null,"Prima vacacional que otorga la empresa (art. 80 LFT)"]
[null,"Años",null,null,null,"Años",null,null,null,"Años"]
[null,"Mínimo","Máximo","Días",null,"Mínimo","Máximo","Días",null,"Mínimo","Máximo","Días"]
[null,0,1,12,null,0,30,15,null,0,30,0.25]
[null,{"$f":"C7+0.01","v":1.01},2,{"$f":"D7+2","v":14}]
[null,{"$f":"C8+0.01","v":2.0099999999999998},3,{"$f":"D8+2","v":16},null,"Salario mínimo",null,null,null,"Valor de la UMA"]
[null,3.01,4,18,null,"Zona norte",374.89,null,null,"Enero",103.74]
[null,4.01,5,20,null,"Otra",248.93,null,null,"Febrero",108.57]
[null,5.01,{"$f":"C11+5","v":10},22]
[null,10.01,{"$f":"C12+5","v":15},24]
[null,15.01,20,26,null,"Enero - Febrero",59,null,null,"Semanal",7]
[null,20.010000000000002,25,28,null,"Marzo - Abril",61,null,null,"Decenal",10]
[null,25.01,30,30,null,"Mayo - Junio",61,null,null,"Quincenal",15]
[null,30.01,35,32,null,"Julio - Agosto",62,null,null,"Mensual",30]
[null,null,null,null,null,"Septiembre - Octubre",61]
[null,null,null,null,null,"Noviembre - Diciembre",61]
[]
[null,null,null,null,null,"Enero",1]
[null,null,null,null,null,"Febrero",2]
[null,null,null,null,null,"Marzo",3]
[null,null,null,null,null,"Abril",4]
[null,null,null,null,null,"Mayo",5]
[null,null,null,null,null,"Junio",6]
[null,null,null,null,null,"Julio",7]
[null,null,null,null,null,"Agosto",8]
[null,null,null,null,null,"Septiembre",9]
[null,null,null,null,null,"Octubre",10]
[null,null,null,null,null,"Noviembre",11]
[null,null,null,null,null,"Diciembre",12]